{"text_format":"1","workbook":"xlsx","n_sheets":23,"sheets":["Cover Page","Contents","Facility Info","Operational Data","Operational Summary","Perf. Form 1","Energy Form 1","Permit Compliance","Improvements","Public Liasion","CO2 N2O","Residue Quality ","Water","Air (periodic)","Air (CEMS)","HCl","SO2","NOx","TOC","Particulates","CO 0.5hourly","CO 95% 10 min","NH3"],"not_rendered":{"charts":8,"images":1,"macros":1,"external_links":0,"defined_names":23,"comments":0,"pivot_tables":0},"unopened":[],"bounds":{"document_bytes":16777216,"sheet_cells":100000,"rows_first":2000,"rows_last":500,"rows_between":2000,"halvings":0,"cell_chars":16384,"cell_head_chars":4096},"cells_cut":0,"cells_raw":0,"read":"whole","date_system":"1900"}

{"sheet":"Cover Page","index":0,"n_rows":53,"n_cols":14,"rows_kept":53,"cut":false,"hidden":false,"merged":[[13,13,18,15],[34,1,34,8],[0,3,5,6],[7,1,23,8],[28,1,28,8],[30,1,30,8],[32,1,32,8],[48,2,48,3],[48,6,48,8],[52,2,52,3],[36,1,36,8],[40,2,40,8],[42,2,42,4],[44,2,44,4],[46,2,46,3],[46,6,46,8]]}
[null,null,null,"Add company logo"]
[null,null,null,null,null,null,null,null,null,null,null,null,null,"Version 22.3  30/11/22"]
[]
[]
[]
[]
[]
[null,"Add photo"]
[]
[]
[]
[]
[null,null,null,null,null,null,null,null,null,null,null,null,null,"Notes:"]
[null,null,null,null,null,null,null,null,null,null,null,null,null,"This template may require adjustments by individual operators to meet specific reporting requirements as defined in the site Permit(s)"]
[]
[]
[]
[]
[]
[]
[]
[]
[]
[]
[]
[]
[]
[]
[null,"Annual Performance Report 2023"]
[]
[null,"Permit EPR/DP3932RS"]
[]
[null,"Hull Energy Production Facility"]
[]
[null,"Biomass UK No 1 LLP"]
[]
[]
[]
[null,"Year:",2023]
[]
[null,"Address:","King George Dock, The Port of Hull, Marfleet, Hull, HU9 5PS"]
[]
[null,"Tel: ","01179 372 811"]
[]
[null,"Email: ","charlie.holmes@sol-environment.co.uk"]
[]
[null,"Prepared by:","Charlie Holmes",null,null,"Position:","Consultant"]
[]
[null,"Approved by:","Randall Smith",null,null,"Position:","Technical Manager"]
[]
[null,"Version:",1]
[]
[null,"Issue Date:","2024-01-31"]

{"sheet":"Contents","index":1,"n_rows":45,"n_cols":11,"rows_kept":45,"cut":false,"hidden":false,"merged":[[4,10,7,14],[8,1,8,6],[3,1,3,6],[4,1,4,6],[5,1,5,6],[6,1,6,6],[7,1,7,6],[21,1,21,6],[9,1,9,6],[10,1,10,6],[11,1,11,6],[13,1,13,6],[14,1,14,6],[15,1,15,6],[16,1,16,6],[17,1,17,6],[18,1,18,6],[19,1,19,6],[20,1,20,6],[12,1,12,6],[36,1,36,6],[22,1,22,6],[23,1,23,6],[24,1,24,6],[27,1,27,6],[28,1,28,6],[29,1,29,6],[30,1,30,6],[31,1,31,6],[32,1,32,6],[35,1,35,6],[44,0,47,9],[37,1,37,6],[38,1,38,6],[39,1,39,6],[40,1,40,6],[41,1,41,6],[42,1,42,6]]}
[{"$f":"+'Cover Page'!$B$29","v":"Annual Performance Report 2023"},null,null,null,{"$f":"+'Cover Page'!$B$33","v":"Hull Energy Production Facility"}]
[]
["Contents",null,null,null,null,null,null,null,null,null,"Notes:"]
["Section","Subject",null,null,null,null,null,"Page ",null,null,"Section references and Page nos. to be inserted"]
[null,"Facility Information",null,null,null,null,null,null,null,null,"Sections and Subjects may require adjustment by individual operators to meet specific reporting requirements as defined in the sites Permit(s)"]
[null,"Operational Data"]
[null,"Operational Summary"]
[null,"Performance Form 1"]
[null,"Energy Form 1"]
[null,"Permit Compliance"]
[null,"Improvements"]
[null,"Public Liasion"]
[null,"Carbon dioxide and nitrous oxide emissions"]
[null,"Residue Quality "]
[null,"Emissions to Water"]
[null,"Emissions to Air (periodically monitored)"]
[null,"Emissions to Air (continuously monitored)"]
[null,"Hydrogen Chloride emissions"]
[null,"Sulphur Dioxdie emsissions"]
[null,"Oxides of Notrigen emissions"]
[null,"Total Organic Carbon emissions"]
[null,"Particulate Matter emissions"]
[null,"Carbon Monoxide emissions"]
[null,"Ammonia emissions"]
[]
[]
["Version Control"]
["Section","Information",null,null,null,null,null,"Date"]
[]
[]
[]
[]
[]
[]
["Distribution"]
["Copy","Name, Role",null,null,null,null,null,"No."]
[]
[]
[]
[]
[]
[]
[]
[]
["This report is required under the Industrial Emissions Directive’s Article 55(2) requirements on reporting and public information on waste incineration plants and co-incineration plants, which require the operator to produce an annual report on the functioning and monitoring of the plant and make it available to the public. "]

{"sheet":"Facility Info","index":2,"n_rows":22,"n_cols":11,"rows_kept":22,"cut":false,"hidden":false,"merged":[[4,0,17,8],[21,0,53,8],[4,10,13,13],[21,10,30,13]]}
[{"$f":"+'Cover Page'!$B$29","v":"Annual Performance Report 2023"},null,null,null,{"$f":"+'Cover Page'!$B$33","v":"Hull Energy Production Facility"}]
[]
["Plant Description and Design",null,null,null,null,null,null,null,null,null,"Notes:"]
[]
["The Hull Energy Production Facility  is a renewable energy generation facility which has been designed to recover energy from pre-prepared mixed waste wood feedstocks using gasification. The gasification facility is an Advanced Thermal Treatment (ATT) process that will produce a combustible synthesis gas, which is then used to raise steam and generate electricity, through steam cycle turbine generation.\n\nThe Advanced Thermal Treatment (ATT) plant is designed to process shredded mixed waste wood feedstocks to produce heat to raise steam in a conventional tube boiler for utilisation in a steam turbine for the production of renewable electricity with an export capacity up to 10MWe.\n\nThe Installation has been designed to process approximately 86,400 tonnes of pre-processed non-hazardous mixed waste wood per annum. ",null,null,null,null,null,null,null,null,null,"Include summary of plant design, design capacity, no. of combustion lines, electrical and heat capacity and any other general information that descibes the facility, its location and purpose "]
[]
[]
[]
[]
[]
[]
[]
[]
[]
[]
[]
[]
[]
[]
["Summary of Operational Processes and Procedures"]
[]
["The principle components of the process comprise the following:\n\nWaste Acceptance and Reception: All waste wood is delivered directly into the fuel storage building via electrically operated roller shutter doors. When required, the waste is discharged onto the feedstock feed system, which delivers the waste into the gasification building. All waste is accepted in accordance to the sites waste acceptance procedures.\n\nGasification: The feedstock feed system delivers the waste into the fluidised bed gasification system where the waste is combusted to produce a synthetic gas (syngas). The syngas is then combusted to produce a high temperature flue-gas. A steam boiler then recovers the heat from the combustion gases through the conversion into superheated steam.\n\nElectricity Generation: The superheated steam then passes to a Steam Turbine and Generator, which will export 10MWe (net) of renewable electricity onto the Local Distribution Network.\n\nFlue-Gas Cleaning: Flue gas cleaning and pollution control consists of urea injection for De-NOx, lime injection for acid gas neutralisation and activated carbon powder injection for absorption and removal of heavy metals, dioxins, VOCs and other harmful substances. The stream has a baghouse system, which is designed to have the capacity to remove submicron dust particles within anticipated emission limit values (ELV’s) stipulated by Chapter IV of the Industrial Emissions Directive (IED).\n\nThe plant is operated in accordance with its Environmental Management System which is designed to meet the requirements of ISO14001:2004.  ",null,null,null,null,null,null,null,null,null,"Include summary of key processes and procedures such as (but not limited to); waste reception, control rooms, grate, bed and bolier, energy & heat  generation, cooling systems, residue management, emission controls, health and safety systems, maintenance"]

{"sheet":"Operational Data","index":3,"n_rows":67,"n_cols":11,"rows_kept":67,"cut":false,"hidden":false,"merged":[[54,0,58,0],[5,10,6,10],[7,10,18,10],[33,1,40,1],[3,1,3,2],[7,1,19,1],[23,1,26,1],[28,1,29,1]]}
[{"$f":"+'Cover Page'!$B$29","v":"Annual Performance Report 2023"},null,null,null,{"$f":"+'Cover Page'!$B$33","v":"Hull Energy Production Facility"}]
[]
["Operational Data",null,null,null,null,null,null,null,null,null,"Notes:"]
["Plant Size",null,null,"tonnes pa",null,"MWth",null,"MWe",null,null,"* - RDF to include SRF "]
["No. of combustion lines",1,null,"No. of Turbines:",null,1,null,null,null,null,"** - CHP plants only"]
[null,null,null,null,null,null,null,null,null,null,"2020 updates include;  heat in MWh, water in Litres, NCV in MJ/kg"]
["Waste types received","Unit","Q1","Q2","Q3","Q4","Year Total","%"]
["Household / Local Authority","tonnes",null,null,null,null,{"$f":"SUM(C8:F8)","v":0},{"$f":"IF(G8>0,G8/$G$18,\"-\")","v":"-"},null,null,"Availabiity Definition: 'the availability of a line is to be calculated by the number of hours the line reported Continuously Monitored emission levels to the Regulator through the calendar year divided by the total number of hours in that year. \nThe overall plant availability is calculated as the Mean of all lines in the plant. For clarity this includes periods of Other Than Normal Operating Conditions (OTNOC) and abnormal operation.'  \n\nRationale: The primary function of an Energy from Waste facility is the disposal of waste. It follows therefore that the availability of a plant is determined by the period of time a facility spends undertaking this activity."]
["Commercial & Industrial ",null,null,null,null,null,{"$f":"SUM(C9:F9)","v":0},"-"]
["Hazardous ",null,null,null,null,null,0,"-"]
["Clinical",null,null,null,null,null,0,"-"]
["Waste wood (biomass) ",null,null,null,null,null,0,"-"]
["Refuse Derived Fuel * - H'hold/LA",null,3997.58,5199.3639999999996,3695.39,2560,{"$f":"SUM(C13:F13)","v":15452.333999999999},1]
["Refuse Derived Fuel *  - C&I",null,null,null,null,null,0,"-"]
["Other [Please specify]",null,null,null,null,null,0,"-"]
["Other [Please specify]"]
["Other [Please specify]"]
["Total waste received",null,{"$f":"SUM(C8:C17)","v":3997.58},{"$f":"SUM(D8:D17)","v":5199.3639999999996},{"$f":"SUM(E8:E17)","v":3695.39},{"$f":"SUM(F8:F17)","v":2560},{"$f":"SUM(G8:G17)","v":15452.333999999999},1]
["Rejected Waste ",null,null,null,null,null,{"$f":"SUM(C19:F19)","v":0},{"$f":"IF(G19>0,G19/$G$18,\"-\")","v":"-"}]
["Unprocessed waste transferred out",null,null,null,null,null,{"$f":"SUM(C20:F20)","v":0},{"$f":"IF(G20>0,G20/$G$18,\"-\")","v":"-"}]
["Total waste combusted",null,{"$f":"C18-SUM(C19:C20)","v":3997.58},{"$f":"D18-SUM(D19:D20)","v":5199.3639999999996},3695.39,2560,{"$f":"SUM(C21:F21)","v":15452.333999999999},{"$f":"IF(G21>0,G21/$G$18,\"-\")","v":1}]
[]
["Energy Useage / Export","Unit","Q1","Q2","Q3","Q4","Year Total","KWh/te"]
["Power Generated","MWh",4462,3437,4194,2680,{"$f":"SUM(C24:F24)","v":14773},{"$f":"IF(G24>0,G24*1000/$G$21,\"-\")","v":956.03680324279821}]
["Power Exported",null,3512,2776,3344,2173,{"$f":"SUM(C25:F25)","v":11805},{"$f":"IF(G25>0,G25*1000/$G$21,\"-\")","v":763.96225968193551}]
["Power Used on site",null,null,null,null,null,{"$f":"SUM(C26:F26)","v":0},{"$f":"IF(G26>0,G26*1000/$G$21,\"-\")","v":"-"}]
["Power Imported",null,767,621,701,767,2856,{"$f":"IF(G27>0,G27*1000/$G$21,\"-\")","v":184.82644757743395}]
["Parasitic Load","%",{"$f":"IF(C24>0,1-C25/(C24+C27),\"-\")","v":0.32836106330082238},{"$f":"IF(D24>0,1-D25/(D24+D27),\"-\")","v":0.31591917200591424},{"$f":"IF(E24>0,1-E25/(E24+E27),\"-\")","v":0.31685393258426964},{"$f":"IF(F24>0,1-F25/(F24+F27),\"-\")","v":0.36959675079779519},{"$f":"IF(G24>0,1-G25/(G24+G27),\"-\")","v":0.33036473991718196}]
["Thermal Energy Produced **","MWh",null,null,null,null,{"$f":"SUM(C29:F29)","v":0},{"$f":"IF(G29>0,G29*1000/$G$21,\"-\")","v":"-"}]
["Thermal Energy Exported **",null,null,null,null,null,0,{"$f":"IF(G30>0,G30*1000/$G$21,\"-\")","v":"-"}]
["R1 value (if applicable)"]
[]
["Waste Disposal & Recovery","Unit","Q1","Q2","Q3","Q4","Year Total","% inputs"]
["APC Residues - produced","tonnes",871.31,522.21,912.68,585.22,{"$f":"SUM(C34:F34)","v":2891.42},{"$f":"IF(G34>0,G34/$G$21,\"-\")","v":0.18711865793219332}]
["IBA - produced",null,564.09,34.42,null,null,598.51,{"$f":"IF(G35>0,G35/$G$21,\"-\")","v":3.8732660062874645E-2}]
["Metals recycling",null,15.72,null,null,null,{"$f":"SUM(C36:F36)","v":15.72},1.017322043388397E-3]
["IBA - Recovered ",null,324,72,6,18,{"$f":"SUM(C37:F37)","v":420},2.7180359937857935E-2]
["Mixed Municipal",null,0,144,38,12,194,1.2554737685581997E-2]
["Materials contaminated by hazardous substances",null,null,null,4.7,null,{"$f":"SUM(C39:F39)","v":4.7},{"$f":"IF(G39>0,G39/$G$21,\"-\")","v":3.0416117073317212E-4}]
["RDF Recovered",null,null,null,null,147.47999999999999,{"$f":"SUM(C40:F40)","v":147.47999999999999},{"$f":"IF(G40>0,G40/$G$21,\"-\")","v":9.5441892467506857E-3}]
["Ferrous Metals",null,0,0,23.54,8.9600000000000009,32.5,2.1032421380485305E-3]
[]
["Raw Material Usage","Unit","Q1","Q2","Q3","Q4","Year Total","kg or Ltr /te"]
["Mains Water","m3",9625,6512,8057,6982,{"$f":"SUM(C44:F44)","v":31176},{"$f":"IF(G44>0,G44/$G$21,\"-\")","v":2.0175592891015688}]
["Other Water","ltrs",null,null,null,null,0,{"$f":"IF(G45>0,G45/$G$21,\"-\")","v":"-"}]
["Ammonia","kgs",null,null,null,null,0,"-"]
["Urea","kgs",9680,19200,56320,0,{"$f":"SUM(C47:F47)","v":85200},5.5137301588226091]
["Activated Carbon","kgs",null,null,null,null,0,"-"]
["Lime / hydrated lime","kgs",156840,174200,99600,100484,531124,34.371765456273472]
["Fuel oil","kl",905.23,273.68,529.04,579.15,2287.1,0.14801000289017827]
["Gas","cf",0,0,0,0,0]
["Other",null,0,0,0,0,0]
[]
["Summary ","Line/Unit","Q1","Q2","Q3","Q4","Year Total",null,null,"Hrs in year "]
["Availability of waste combustion by line, hrs",{"$f":"+B5","v":1},533,376,456,297,{"$f":"SUM(C55:F55)","v":1662}," x %",null,8760]
[null,2,null,null,null,null,{"$f":"SUM(C56:F56)","v":0},"x %"]
[null,3,null,null,null,null,0,"x %"]
[null,4,null,null,null,null,0,"x %"]
[null,5,null,null,null,null,{"$f":"SUM(C59:F59)","v":0},"x %"]
["Overall Availability, mean avg. of all lines, hrs",null,533,376,456,297,{"$f":"AVERAGE(G55:G59)","v":332.4},"x %"]
["Hours of turbine operations, hrs",1,null,null,null,null,0,"x %"]
["Hours of turbine operations, hrs",2,null,null,null,null,0,"x %"]
["Hours of heat / steam export",null,null,null,null,null,0,{"$f":"IF(B63>0,G62/J55,\"n/a\")","v":"n/a"}]
["Net Calorific Value of waste","MJ/kg",14,14,14,14,null,"-"]
["Abnormal Events","qty.",null,null,null,null,0,{"$f":"IF(G65>0,\"yes\",\"no\")","v":"no"}]
["Abnormal operation","hours",null,null,null,null,0,{"$f":"+(G66)/J55","v":0}]
["Permit Breaches","qty.",null,null,3,null,3,{"$f":"IF(G67>0,\"yes\",\"no\")","v":"yes"}]

{"sheet":"Operational Summary","index":4,"n_rows":31,"n_cols":11,"rows_kept":31,"cut":false,"hidden":false,"merged":[[4,0,26,8],[30,0,51,8],[4,10,13,13],[30,10,39,13]]}
[{"$f":"+'Cover Page'!$B$29","v":"Annual Performance Report 2023"},null,null,null,{"$f":"+'Cover Page'!$B$33","v":"Hull Energy Production Facility"}]
[]
["Summary of Plant Operations and Maintenance during the reporting year",null,null,null,null,null,null,null,null,null,"Notes:"]
[]
["Following the completion of the fuel stock conversion and the adoption of SRF in Q4 2022, the plant has experienced intermittent operation, with running periods not exceeding three weeks. This is primarily attributed to the necessity for regular shutdowns to facilitate cleaning and de-slagging.\n\n \n\nAs of Q2, an escalating issue has surfaced concerning the increased failure of the site's boiler tubes. This predicament is linked to the composition of the fuel stock, resulting in chlorine-induced corrosion and erosion. Consequently, the overall site availability has hovered around 20%, and running periods have averaged 10 days, punctuated by substantial boiler repairs during the interim.\n\n \n\nTo rectify these technical challenges, a comprehensive solution named Project Phoenix has been initiated. This restorative project is anticipated to conclude in Q3 2024, aiming to address and resolve the identified issues and enhance the plant's operational efficiency",null,null,null,null,null,null,null,null,null,"Include summary of key operational and/or mainteanance activity undertaken in the year, such as any major component upgrades and/or replacements "]
[]
[]
[]
[]
[]
[]
[]
[]
[]
[]
[]
[]
[]
[]
[]
[]
[]
[]
[]
[]
[]
[]
[]
["Summary of Residue Handling for the reporting year"]
[]
["Monthly sampling of IBA and APCR commenced in January in line with Schedule 4 of the Environmental Permit. \n\nIBA and APCR is handled by a broker N+P, and taken to the Augean site in Peterborough.",null,null,null,null,null,null,null,null,null,"Include in here a summary of residue handling regimes and destinations "]

{"sheet":"Perf. Form 1","index":5,"n_rows":54,"n_cols":10,"rows_kept":54,"cut":false,"hidden":false,"merged":[[9,0,9,9],[10,0,10,1],[10,2,10,3],[10,4,10,5],[10,6,10,7],[10,8,10,9],[2,0,2,4],[2,6,2,8],[3,1,3,4],[5,3,5,4],[5,6,5,7],[8,0,8,1],[8,2,8,3],[8,4,8,5],[8,6,8,7],[8,8,8,9],[11,0,11,1],[11,2,11,3],[11,4,11,5],[11,6,11,7],[11,8,11,9],[12,0,12,1],[12,2,12,3],[12,4,12,5],[12,6,12,7],[12,8,12,9],[15,0,15,1],[15,2,15,3],[15,4,15,5],[15,6,15,7],[15,8,15,9],[16,0,16,9],[13,0,13,1],[13,2,13,3],[13,4,13,5],[13,6,13,7],[13,8,13,9],[14,0,14,3],[14,4,14,5],[14,6,14,7],[14,8,14,9],[17,0,17,1],[17,2,17,3],[17,4,17,5],[17,6,17,7],[17,8,17,9],[18,0,18,1],[18,2,18,3],[18,4,18,5],[18,6,18,7],[18,8,18,9],[19,0,19,1],[19,2,19,3],[19,4,19,5],[19,6,19,7],[19,8,19,9],[20,0,20,1],[20,2,20,3],[20,4,20,5],[20,6,20,7],[20,8,20,9],[21,0,21,1],[21,2,21,3],[21,4,21,5],[21,6,21,7],[21,8,21,9],[22,0,22,3],[22,4,22,5],[22,6,22,7],[22,8,22,9],[31,0,31,3],[31,7,31,8],[32,0,32,3],[32,4,32,5],[32,7,32,8],[33,0,33,3],[33,4,33,5],[33,7,33,8],[23,0,23,3],[23,4,23,5],[23,6,23,7],[23,8,23,9],[25,0,25,9],[26,0,28,9],[36,0,36,3],[36,4,36,5],[36,7,36,8],[37,0,37,3],[37,4,37,5],[37,7,37,8],[34,0,34,3],[34,4,34,5],[34,7,34,8],[35,0,35,3],[35,4,35,5],[35,7,35,8],[47,0,47,1],[49,0,49,9],[50,0,51,9],[38,0,38,9],[39,0,40,9],[43,0,43,1],[43,2,43,9],[45,0,45,1],[46,0,46,1]]}
[{"$f":"+'Cover Page'!C39","v":2023}," Annual Reporting Performance Form 1"]
[]
[{"$f":"+'Cover Page'!B31","v":"Permit EPR/DP3932RS"},null,null,null,null,"Operator: ",{"$f":"+'Cover Page'!B37:I37","v":0}]
["Facility:",{"$f":"+'Cover Page'!B33:I33","v":"Hull Energy Production Facility"},null,null,null,"Form:","Performance 1"]
[]
["Reporting  Period from: ",null,null,"2023-01-01",null,"to:","2023-12-31"]
[]
[{"$f":"+A1","v":2023},"Annual Reporting of Waste Disposal and Recovery"]
["Waste Description",null,"Disposal Route(s)",null,"Disposal Tonnes",null,"Recovery Tonnes",null,"% / tonne of waste incinerated"]
["1) Hazardous Wastes"]
["APC Residues",null,null,null,2891,null,null,null,{"$f":"IF((E11+G11)>0,(E11+G11)/'Operational Data'!$G$21, \"-\")","v":0.18709147757225544}]
["IBA",null,null,null,599,null,null,null,{"$f":"IF((E12+G12)>0,(E12+G12)/'Operational Data'!$G$21, \"-\")","v":3.8764370482802145E-2}]
["Material contaminated by hazardous substances",null,null,null,5,null,null,null,{"$f":"IF((E13+G13)>0,(E13+G13)/'Operational Data'!$G$21, \"-\")","v":3.2357571354592779E-4}]
[null,null,null,null,null,null,null,null,{"$f":"IF((E14+G14)>0,(E14+G14)/'Operational Data'!$G$21, \"-\")","v":"-"}]
["Total Hazardous Waste",null,null,null,{"$f":"SUM(E11:F14)","v":3495},null,{"$f":"SUM(G11:H14)","v":0},null,{"$f":"IF((E15+G15)>0,(E15+G15)/'Operational Data'!$G$21, \"-\")","v":0.2261794237686035}]
[]
["2) Non-Hazardous Wastes"]
["IBA",null,null,null,null,null,420,null,{"$f":"IF((E18+G18)>0,(E18+G18)/'Operational Data'!$G$21, \"-\")","v":2.7180359937857935E-2}]
["Ferrous Metal",null,null,null,null,null,33,null,{"$f":"IF((E19+G19)>0,(E19+G19)/'Operational Data'!$G$21, \"-\")","v":2.1355997094031232E-3}]
["RDF",null,null,null,null,null,147,null,{"$f":"IF((E20+G20)>0,(E20+G20)/'Operational Data'!$G$21, \"-\")","v":9.5131259782502767E-3}]
["Mixed Municipal",null,null,null,null,null,null,null,{"$f":"IF((E21+G21)>0,(E21+G21)/'Operational Data'!$G$21, \"-\")","v":"-"}]
["Metals",null,null,null,null,null,16,null,{"$f":"IF((E22+G22)>0,(E22+G22)/'Operational Data'!$G$21, \"-\")","v":1.0354422833469689E-3}]
["Total Non-Hazardous Waste",null,null,null,{"$f":"SUM(E18:F22)","v":0},null,{"$f":"SUM(G18:H22)","v":616},null,{"$f":"IF((E23+G23)>0,(E23+G23)/'Operational Data'!$G$21, \"-\")","v":3.9864527908858305E-2}]
["TOTAL WASTE",null,null,null,{"$f":"+E23+E15","v":3495},null,{"$f":"+G23+G15","v":616},null,{"$f":"IF((E24+G24)>0,(E24+G24)/'Operational Data'!$G$21, \"-\")","v":0.26604395167746181}]
[]
["Operator’s comments :"]
[]
[]
[]
[]
[{"$f":"+A1","v":2023},"Annual Reporting of Water and Other Raw Material Usage"]
["Raw Material",null,null,null,"Usage",null,"Unit","Specific Useage",null,"Unit"]
["Mains Water",null,null,null,{"$f":"+'Operational Data'!G44","v":31176},null,"m3",{"$f":"IF(E33>0,E33/'Operational Data'!$G$21,\"-\")","v":2.0175592891015688},null,"m3/te"]
["Total Water",null,null,null,{"$f":"+'Operational Data'!G45+'Operational Data'!G44","v":31176},null,"m3",{"$f":"IF(E34>0,E34/'Operational Data'!$G$21,\"-\")","v":2.0175592891015688},null,"m3/te"]
["Urea / Ammonia",null,null,null,85200,null,"kg",{"$f":"IF(E35>0,E35/'Operational Data'!$G$21,\"-\")","v":5.5137301588226091},null,"kg/te"]
["Activated Carbon",null,null,null,{"$f":"+'Operational Data'!G48","v":0},null,"kg",{"$f":"IF(E36>0,E36/'Operational Data'!$G$21,\"-\")","v":"-"},null,"kg/te"]
["Lime / hydrated lime / Sodium Bicarb.",null,null,null,{"$f":"+'Operational Data'!G49","v":531124},null,"kg",{"$f":"IF(E37>0,E37/'Operational Data'!$G$21,\"-\")","v":34.371765456273472},null,"kg/te"]
[]
["Operator’s comments :"]
[]
[]
[]
[{"$f":"+A31","v":2023},"Annual Reporting of other performance indicators "]
["Parameter",null,"Results by Line"]
[null,null,"A1","A2","A3","A4","A5",null,"Turbine 1","Turbine 2"]
["Operating hours for the year, hours",null,1662,null,null,null,null,null,1662]
["Number of periods of abnormal operation, qty."]
["Cumulative hours of abnormal operation for this year, hours"]
[]
["Operator’s comments :"]
[]
[]
[]
["Signed: ",null,null,null,null,null,"Date:"]

{"sheet":"Energy Form 1","index":6,"n_rows":29,"n_cols":7,"rows_kept":29,"cut":false,"hidden":false,"merged":[[2,6,2,8],[4,1,4,4],[6,3,6,4],[6,6,6,7],[8,0,8,2],[8,3,8,4],[8,6,8,8],[9,0,9,2],[9,3,9,4],[9,6,9,8],[10,0,10,2],[10,3,10,4],[10,6,10,8],[11,0,11,2],[11,3,11,4],[11,6,11,8],[12,0,12,2],[12,3,12,4],[12,6,12,8],[13,0,13,2],[13,3,13,4],[13,6,13,8],[14,0,14,2],[14,3,14,4],[14,6,14,8],[15,0,15,2],[15,3,15,4],[15,6,15,8],[17,0,17,8],[18,0,24,8]]}
[{"$f":"+'Cover Page'!C39","v":2023}," Annual Reporting of Energy Usage/Export"]
[]
[{"$f":"+'Cover Page'!B31","v":"Permit EPR/DP3932RS"},null,null,null,null,"Operator: ",{"$f":"+'Cover Page'!B37:I37","v":0}]
[]
["Facility:",{"$f":"+'Cover Page'!B33:I33","v":"Hull Energy Production Facility"},null,null,null,"Form:","Energy 1"]
[]
["Reporting  Period from: ",null,null,{"$f":"+'Perf. Form 1'!D6:E6","v":"2023-01-01"},null,"to:",{"$f":"+'Perf. Form 1'!G6:H6","v":"2023-12-31"}]
[]
["Energy Source",null,null,"Energy Usage",null,"Unit","Specific Useage (KWh/tonne incinerated"]
["Electricity Produced",null,null,{"$f":"+'Operational Data'!G24","v":14773},null,"MWh",{"$f":"+'Operational Data'!H24","v":956.03680324279821}]
["Electricity Imported   ",null,null,{"$f":"+'Operational Data'!G27","v":2856},null,"MWh",{"$f":"+'Operational Data'!H27","v":184.82644757743395}]
["Electricity Exported",null,null,{"$f":"+'Operational Data'!G25","v":11805},null,"MWh",{"$f":"+'Operational Data'!H25","v":763.96225968193551}]
["Gas Oil",null,null,null,null,"tonnes"]
["Steam/hot water exported",null,null,{"$f":"+'Operational Data'!G30","v":0},null,"GWh",{"$f":"+'Operational Data'!H30","v":"-"}]
[]
[]
[]
["Operator’s comments :"]
[]
[]
[]
[]
[]
[]
[]
[]
[]
[]
["Signed: ",null,null,null,null,null,"Date:"]

{"sheet":"Permit Compliance","index":7,"n_rows":43,"n_cols":12,"rows_kept":43,"cut":false,"hidden":false,"merged":[[33,1,33,3],[29,1,29,3],[30,1,30,3],[31,1,31,3],[32,1,32,3],[33,4,33,6],[20,4,32,6],[25,1,25,3],[8,11,17,14],[42,4,42,8],[9,0,9,1],[9,2,9,4],[9,5,9,8],[10,0,10,1],[10,2,10,4],[10,5,10,8],[11,0,11,1],[11,2,11,4],[11,5,11,8],[12,0,12,1],[12,2,12,4],[12,5,12,8],[13,0,13,1],[13,2,13,4],[7,0,7,1],[7,2,7,8],[8,0,8,1],[8,2,8,4],[8,5,8,8],[13,5,13,8],[20,7,32,8],[14,0,14,1],[14,2,14,4],[14,5,14,8],[15,0,15,1],[16,2,16,4],[16,5,16,8],[15,2,15,4],[15,5,15,8],[16,0,16,1],[26,1,26,3],[27,1,27,3],[28,1,28,3],[41,1,41,3],[41,4,41,6],[38,1,38,3],[38,4,38,6],[39,1,39,3],[39,4,39,6],[18,0,18,10],[40,1,40,3],[40,4,40,6],[36,1,36,3],[36,4,36,6],[37,1,37,3],[37,4,37,6],[23,1,23,3],[24,1,24,3],[33,7,33,8],[21,1,21,3],[22,1,22,3],[19,1,19,3],[19,4,19,6],[19,7,19,9],[20,1,20,3]]}
[{"$f":"+'Cover Page'!$B$29","v":"Annual Performance Report 2023"},null,null,null,{"$f":"+'Cover Page'!$B$33","v":"Hull Energy Production Facility"}]
[]
["Summary of Permit Compliance"]
[]
["Compliance with permit limits for continuously monitored pollutants"]
[]
["The plant met its emission limits as shown in the table below:"]
["Substance",null,"Percentage time compliant during operation",null,null,null,null,null,null,null,null,"Notes:"]
[null,null,"Half-hourly limit",null,null,"Daily limit",null,null,null,null,null,"Report to 2 decimal places, i.e. xx.xx%\n\nPlease provide a brief summary of each notification or non-compliance in the table (rather than just referring to notifications that were sent to the Regulator).  \n\n"]
["Particulates",null,1,null,null,1]
["Oxides of nitrogen",null,0.99980000000000002,null,null,0.99980000000000002]
["Sulphur dioxide",null,1,null,null,1]
["Carbon monoxide",null,"99.98 % or \n100% 95% of 10-min averages",null,null,0.99990000000000001]
["Total organic carbon",null,1,null,null,1]
["Hydrogen chloride",null,0.99980000000000002,null,null,0.99980000000000002]
["Hydrogen fluoride",null,1,null,null,1]
[null,null,0.99980000000000002,null,null,0.99980000000000002]
[]
["Summary of any notifications or non-compliances under the permit"]
["Date","Summary of notification or non-compliance [including Line/Reference]",null,null,"Reason ",null,null,"Measures taken to prevent reoccurrence"]
["2023-07-07","CO 1/2 hrly av ELV breached (112 mg/m3)",null,null,"Defective fuel feed and feed pipe blockages.",null,null,"Maintence and training"]
["2023-07-18","HCI 1/2 hrly av ELV breached (73.08 mg/m3)"]
["2023-07-18","HCI 1/2 hrly av ELV breached (81.55 mg/m3)"]
["2023-07-18","HCI 1/2 hrly av ELV breached (248.03 mg/m3)"]
["2023-07-18","HCI 1/2 hrly av ELV breached (138.21 mg/m3)"]
["2023-07-18","HCI 1/2 hrly av ELV breached (126.47 mg/m3)"]
["2023-07-18","HCI 1/2 hrly av ELV breached (140.98 mg/m3)"]
["2023-07-18","HCI 1/2 hrly av ELV breached (102.65 mg/m3)"]
["2023-07-18","HCI 1/2 hrly av ELV breached (185.21 mg/m3)"]
["2023-07-18","HCI daily av ELV breached (33.95 60 mg/m3)"]
["2023-07-19","CO 1/2 hrly av ELV breached (131 mg/m3)"]
["2023-07-23","HCI daily av ELV breached (12.3 mg/m3)"]
["2023-09-21","HCI 1/2 hrly av ELV breached (160 mg/m3)"]
["2023-07-18","Failure to notify ELV breaches between (18/07 - 21/09)",null,null,"Management error",null,null,"Training"]
[]
["Summary of any complaints received and actions to taken to resolve them."]
["Date","Summary of complaint [including Line/Reference]",null,null,"Reason *",null,null,"Measures taken to prevent reoccurrence"]
[2023,"None"]
[]
[]
[]
[]
[null,null,null,null,"* including whether substantiated by the operator or the EA"]

{"sheet":"Improvements","index":8,"n_rows":39,"n_cols":5,"rows_kept":39,"cut":false,"hidden":false,"merged":[[37,0,37,8],[38,0,47,8],[4,0,4,8],[5,0,13,8],[15,0,15,8],[16,0,24,8],[26,0,26,8],[27,0,35,8]]}
[{"$f":"+'Cover Page'!$B$29","v":"Annual Performance Report 2023"},null,null,null,{"$f":"+'Cover Page'!$B$33","v":"Hull Energy Production Facility"}]
[]
["Summary of Plant Improvements"]
[]
["Summary of any efficiency improvements that have been completed within the year."]
["Installation of LED lights across site (reduce primary engery consumption).\n\nOptimized start up programme (reduced start up fuel)."]
[]
[]
[]
[]
[]
[]
[]
[]
[]
["Summary of any permit improvement conditions that have been completed within the year and the resulting environmental benefits."]
["None."]
[]
[]
[]
[]
[]
[]
[]
[]
[]
["Summary of any changes to the plant or operating techniques which required a variation to the permit and a summary of the resulting environmental impact."]
["None."]
[]
[]
[]
[]
[]
[]
[]
[]
[]
["Summary of any other improvements made to the plant or planned to be made and a summary of the resulting environmental benefits."]
["None."]

{"sheet":"Public Liasion","index":9,"n_rows":29,"n_cols":5,"rows_kept":29,"cut":false,"hidden":false,"merged":[[16,0,16,1],[16,2,16,8],[5,0,5,1],[5,2,5,8],[6,0,7,1],[6,2,7,8],[8,0,9,1],[8,2,9,8],[10,0,11,1],[10,2,11,8],[12,0,13,1],[12,2,13,8],[15,0,15,8],[17,0,18,1],[17,2,18,8],[19,0,20,1],[19,2,20,8],[21,0,22,1],[21,2,22,8],[23,0,24,1],[23,2,24,8],[25,0,26,1],[25,2,26,8],[28,0,28,8]]}
[{"$f":"+'Cover Page'!$B$29","v":"Annual Performance Report 2023"},null,null,null,{"$f":"+'Cover Page'!$B$33","v":"Hull Energy Production Facility"}]
[]
["Details of Public & Stakeholder Liasion"]
[]
["Summary of events held during the reporting year."]
["Date",null,"Description"]
[2023,null,"None"]
[]
[]
[]
[]
[]
[]
[]
[]
["List of events planned for next year"]
["Date",null,"Description"]
[2024,null,"Not yet planned"]
[]
[]
[]
[]
[]
[]
[]
[]
[]
[]
["If you wish to be involved in the public liasion programme, please contact _________________"]

{"sheet":"CO2 N2O","index":10,"n_rows":22,"n_cols":5,"rows_kept":22,"cut":false,"hidden":false,"merged":[[19,4,19,14],[17,4,17,14],[12,4,12,14],[8,4,8,14],[19,1,19,2],[22,0,23,2],[4,0,4,2],[8,1,8,2],[10,0,10,2],[12,1,12,2],[15,0,15,2],[17,1,17,2]]}
[{"$f":"+'Cover Page'!$B$29","v":"Annual Performance Report 2023"},null,{"$f":"+'Cover Page'!$B$33","v":"Hull Energy Production Facility"}]
[]
["Carbon dioxide emissions and biogenic content of waste inputs",null,null,null,"Notes:"]
[]
["Carbon dioxide emissions (all types of plant)"]
["Annual mass of carbon dioxide released","x tonnes ",19457.8]
["Annual mass of carbon dioxide released per tonne of waste burned","x tonnes ",1.71]
["Annual mass of carbon dioxide released per MWh of energy exported","x tonnes ",1.65]
["Description of how annual carbon dioxide mass emission has been calculated","Electricity improted mutliplied by uk elec 0.207074 =591.3\n332.534475 Nox associated with buring waste.\nFuel x EF - 2287.1 x 3.17 = 7250.1\n11375 combusted waste x 0.992 =11284\n19457.8 / 11375 = 1.71 - C02 per ton waste burned\n19457.8 / exported power 11805 = 1.65\n",null,null,"Note 1: Where available, data from CO2 CEMS should be used. Otherwise, where no CEMS data is available, a suitable emissions factor should be used based on the tonnage of waste burned e.g.0.992 tCO2/t waste as per Tolvik report 2021, or other justified emissions factor  - refer to embedded Environment Agency guidance note above or updated version for suitable descriptive text."]
[]
["Nitrous oxide emissions (only plants which use ammonia or urea to abate NOx emissions)"]
["Annual mass emissions of nitrous oxide","x tonnes ",1.1100000000000001]
["Description of how annual nitrous oxide mass emission has been calculated","Waste 11375t x 0.0981 = 1115.8875 / 1000 = 1.11t\n1.11 x 298 = 332.534475",null,null,"Note 2: Where available, data from N2O CEMS should be used, or if no CEMS data is available, from periodic monitoring. Otherwise, a suitable emissions factor should be used based on the tonnage of waste burned e.g. 0.0981 kgN20/t waste as per 2021 Pollution Inventory data for plants with urea-based SNCR - refer to embedded Environment Agency guidance note above or updated version for suitable descriptive text."]
["Total annual carbon dioxide and nitrous oxide emissions as carbon dioxide equivalent (whereby 1 t nitrous oxide is equivalent to 298 t carbon dioxide)","x tonnes CO2e",332.53447499999999]
[]
["Biogenic fraction of the waste and biogenic CO2 emissions (only plants burning residual municipal waste, refuse derived fuel or solid recovered fuel)"]
["Yearly average biogenic percentage of the waste by net calorific value (NCV)","x %",51.8]
["Description of how biogenic NCV percentage has been calculated or estimated","No sampling data avaliable, used averaging data from WRAP 2017.",null,null,"Note 3: Where available, data from waste sampling should be used; otherwise, an estimated figure with justification can be used, or a figure assumed on the basis of a national average e.g. 2017 WRAP data for residual waste of 51.8% biogenic energy content - refer to embedded Environment Agency guidance note above or updated version for suitable descriptive text, quoting standards where relevant. "]
["Percentage of total carbon dioxide emissions arising from biogenic waste","x %",31.17]
["Description of how percentage biogenic carbon dioxide emissions have been calculated","\n332.5 + 11284 = 11,616.5   x0.518 = 6017.3/ 19457.8 = 31",null,null,"Note 4: Examples include direct measurement via C14 method or BIOMA software - refer to embedded Environment Agency guidance note above or updated version for suitable descriptive text, quoting standards where relevant. Otherwise, as an approximation (and in lieu of any more accurate metrics which may be developed in future), the measured or estimated biogenic fraction by net calorific value can be assumed to be the same as the biogenic CO2 fraction of the total CO2 emissions from the plant. "]
[]
["Comments:"]

{"sheet":"Residue Quality ","index":11,"n_rows":36,"n_cols":6,"rows_kept":36,"cut":false,"hidden":false,"merged":[[16,0,17,1],[16,2,17,6],[18,0,19,1],[18,2,19,6],[12,0,12,6],[13,0,13,1],[13,2,13,6],[5,0,6,6],[7,0,8,6],[9,0,10,6],[14,0,15,1],[14,2,15,6],[20,0,21,1],[20,2,21,6],[22,0,23,1],[22,2,23,6],[31,3,31,4],[27,2,28,2],[28,3,28,4],[28,5,28,6],[27,3,27,6],[26,0,26,6],[35,0,40,6],[32,3,32,4],[34,0,34,6],[27,0,28,1],[29,0,29,1],[30,0,30,1],[31,0,31,1],[32,0,32,1],[29,3,29,4],[30,3,30,4],[29,5,29,6],[30,5,30,6],[31,5,31,6],[32,5,32,6]]}
[{"$f":"+'Cover Page'!$B$29","v":"Annual Performance Report 2023"},null,null,null,{"$f":"+'Cover Page'!$B$33","v":"Hull Energy Production Facility"}]
[]
["Residue Quality Monitoring Requirements"]
[]
["Summary of monitoring undertaken and compliance"]
["Monthly IBA and APCr testing conducted throught the year, excluding May when the plant was offline.  \nFull hazard testing undertaken by Socotec on IBA resulting in compliance as non-hazardous throughout 2023"]
[]
[]
[]
[]
[]
[]
["Commentary on any specific events"]
["Date & Event",null,"Description"]
[]
[]
[]
[]
[]
[]
[]
[]
[]
[]
[]
[]
["Residue Quality Monitoring Results"]
["Parameter (unit) ",null,"Limit","Normal Operation "]
[null,null,null,"Bottom ash  ",null,"APC Residues"]
["Loss on Ignition (average %)",null,"<5%",0.73]
["Total Organic Carbon (average %)",null,"<3%",0.95]
["No. of Assessments Undertaken",null,"---",8,null,5]
["No. of Hazardous Results",null,"---",0]
[]
["Comments :"]
["Due to issues with plant run time no Residue Quality Monitoring Results could be collected durign certain periods."]

{"sheet":"Water","index":12,"n_rows":23,"n_cols":9,"rows_kept":23,"cut":false,"hidden":false,"merged":[[5,0,6,8],[7,0,8,8],[9,0,10,8],[12,0,12,8],[13,0,13,1],[13,2,13,8],[21,0,21,8],[22,0,22,2],[22,3,22,4],[14,0,15,1],[14,2,15,8],[16,0,17,1],[16,2,17,8],[18,0,19,1],[18,2,19,8],[23,0,23,2],[23,3,23,4],[24,0,24,2],[24,3,24,4],[25,0,25,2],[25,3,25,4],[29,0,29,2],[29,3,29,4],[26,0,26,2],[26,3,26,4],[27,0,27,2],[27,3,27,4],[28,0,28,2],[28,3,28,4]]}
[{"$f":"+'Cover Page'!$B$29","v":"Annual Performance Report 2023"},null,null,null,{"$f":"+'Cover Page'!$B$33","v":"Hull Energy Production Facility"}]
[]
["Emissions to Water"]
[]
["Summary of monitoring undertaken and compliance"]
["N/A"]
[]
[]
[]
[]
[]
[]
["Commentary on any specific events"]
["Date & Event",null,"Description"]
[]
[]
[]
[]
[]
[]
[]
["Emissions to Water / Sewer"]
["Parameter",null,null,"Monitoring Frequency",null,"Limit","Target","Max.","Average"]

{"sheet":"Air (periodic)","index":13,"n_rows":40,"n_cols":13,"rows_kept":40,"cut":false,"hidden":false,"merged":[[5,12,8,15],[9,12,11,15],[8,0,8,9],[5,0,6,9],[11,0,11,1],[12,0,12,1],[11,3,11,4],[12,3,12,4],[9,0,10,1],[9,5,9,9],[9,3,10,4],[9,2,10,2],[16,0,16,1],[17,0,17,1],[18,0,18,1],[13,0,13,1],[14,0,14,1],[15,0,15,1],[39,0,40,9],[25,0,25,1],[26,0,26,1],[22,0,22,1],[23,0,23,1],[37,0,37,1],[27,0,27,1],[28,0,28,1],[29,0,29,1],[30,0,30,1],[31,0,31,1],[32,0,32,1],[37,3,37,4],[29,3,29,4],[30,3,30,4],[36,3,36,4],[38,0,38,9],[19,0,19,1],[20,0,20,1],[21,0,21,1],[34,3,34,4],[35,3,35,4],[33,0,33,1],[34,0,34,1],[35,0,35,1],[36,0,36,1],[24,0,24,1],[32,3,32,4],[13,3,13,4],[14,3,14,4],[15,3,15,4],[16,3,16,4],[17,3,17,4],[18,3,18,4],[27,3,27,4],[33,3,33,4],[19,3,19,4],[20,3,20,4],[21,3,21,4],[22,3,22,4],[23,3,23,4],[24,3,24,4],[31,3,31,4],[25,3,25,4],[26,3,26,4],[28,3,28,4]]}
[{"$f":"+'Cover Page'!$B$29","v":"Annual Performance Report 2023"},null,null,null,{"$f":"+'Cover Page'!$B$33","v":"Hull Energy Production Facility"}]
[]
["Emissions to Air (periodically monitored)"]
[]
["Summary of monitoring undertaken, standards used and compliance",null,null,null,null,null,null,null,null,null,null,null,"Notes:"]
["Testing was undertaken in March (Q1) but was unable to be completed and as such some testing dates fall into April (Q2). The permit variation requiring testing of polybrominated dibenzo-dioxins and furans and nitrous oxide was issued following the completion of this testing, as such these parameters have not been monitored during this period. \n\nSite has only been partially operational during Q3 and Q4. Therefore no third party monitoring results have been able to be taken.",null,null,null,null,null,null,null,null,null,null,null,"Template may require adjustment for any bespoke monitoring requirements of permit. "]
[]
[]
["Results of emissions to air that are periodically monitored"]
["Substance",null,"Ref. Period","Emission Limit Value",null,"Average",null,null,null,null,null,null,"User to add additional tables as necessary, depending on whether quarterly or bi-annual reporting is required for the compliance year"]
[null,null,null,null,null,"A1","A2","A3","A4","A5"]
["Hydrogen fluoride",null,"1 hr","2 mg/m3"]
["Cd and Th and their compounds",null,"6-8hrs","0.05 mg/m3",null,9.2000000000000003E-4]
["Hg and its compounds",null,"6-8hrs","0.05 mg/m3",null,4.0000000000000002E-4]
["Sb, As, Pb, Cr, Co, Cu, Mn, Ni, V and their compounds",null,"6-8hrs","0.5 mg/m3",null,0.03]
["Dioxins & Furans (I-TEQ)",null,"6-8hrs","0.1 ng/m3",null,6.8699999999999997E-2]
["PCBs (WHO-TEQ Humans / Mammals)",null,"6-8hrs","None set ng/m3",null,1.7739999999999999E-2]
["PCBs (WHO-TEQ Fish)",null,"6-8hrs","None set ng/m3",null,7.2999999999999999E-5]
["PCBs (WHO-TEQ Birds)",null,"6-8hrs","None set ng/m3",null,2.4879999999999999E-2]
["Dioxins & Furans (WHO-TEQ Humans / Mammals)",null,"6-8hrs","None set ng/m3",null,6.1199999999999997E-2]
["Dioxins & Furans (WHO-TEQ Fish)",null,"6-8hrs","None set ng/m3",null,7.1300000000000002E-2]
["Dioxins & Furans (WHO-TEQ Birds)",null,"6-8hrs","None set ng/m3",null,0.1164]
["Anthanthrene",null,"6-8hrs","None set µg/m3",null,2.48]
["Benzo(a)anthracene",null,"6-8hrs","None set µg/m3",null,0.01]
["Benzo(a)pyrene",null,"6-8hrs","None set µg/m3",null,0.01]
["Benzo(b)fluoranthene",null,"6-8hrs","None set µg/m3",null,0]
["Benzo(b)naptho(2,1-d) thiophene",null,"6-8hrs","None set µg/m3",null,2E-3]
["Benzo(c)phenanthrene",null,"6-8hrs","None set µg/m3",null,4.0000000000000001E-3]
["Benzo(ghi)perylene",null,"6-8hrs","None set µg/m3",null,0]
["Benzo(k)fluoranthene",null,"6-8hrs","None set µg/m3",null,2E-3]
["Cholanthrene",null,"6-8hrs","None set µg/m3",null,2E-3]
["Chrysene",null,"6-8hrs","None set µg/m3",null,1.2E-2]
["Cyclopenta(cd)pyrene",null,"6-8hrs","None set µg/m3",null,2E-3]
["Dibenzo(ai)pyrene",null,"6-8hrs","None set µg/m3",null,2E-3]
["Dibenzo(ah)anthracene",null,"6-8hrs","None set µg/m3",null,2E-3]
["Fluoranthene",null,"6-8hrs","None set µg/m3",null,0.223]
["Indeno(123-cd) pyrene",null,"6-8hrs","None set µg/m3",null,2E-3]
["Naphthalene",null,"6-8hrs","None set µg/m3",null,0.26200000000000001]
["Comments :"]
["."]

{"sheet":"Air (CEMS)","index":14,"n_rows":29,"n_cols":16,"rows_kept":29,"cut":false,"hidden":false,"merged":[[27,0,27,12],[29,0,30,12],[13,0,14,0],[5,0,6,12],[7,0,8,12],[10,0,10,12],[11,0,12,0],[11,2,12,2],[11,1,12,1],[11,3,11,4],[11,5,11,6],[11,7,11,8],[11,9,11,10],[11,11,11,12]]}
[{"$f":"+'Cover Page'!$B$29","v":"Annual Performance Report 2023"},null,null,null,null,null,null,null,{"$f":"+'Cover Page'!$B$33","v":"Hull Energy Production Facility"}]
[]
["Emissions to Air (continously monitored)"]
[null,null,null,null,null,null,null,null,null,null,null,null,null,null,null,"Notes:"]
["Summary of monitoring undertaken, standards used and compliance",null,null,null,null,null,null,null,null,null,null,null,null,null,null,"Template may require adjustment for any bespoke monitoring requirements of permit"]
[null,null,null,null,null,null,null,null,null,null,null,null,null,null,null,"Report to 2 decimal places, i.e. xx.xx%"]
[]
[]
[]
[]
["Results of emissions to air that are continuously monitored (maximum and average values for each line)"]
["Substance","Reference Period","Emission Limit Value","A1",null,"A2",null,"A3",null,"A4",null,"A5"]
[null,null,null,"Max.","Avg.","Max.","Avg.","Max.","Avg.","Max.","Avg.","Max.","Avg."]
["Oxides of nitrogen","Daily mean","200 mg/m3 ",264,158]
[null,"½ hourly mean","400 mg/m3 ",364,167]
["Particulates","Daily mean","10 mg/m3",3,0.9]
[null,"½ hourly mean","30 mg/m3 ",12,0.8]
["Total Organic Carbon ","Daily mean","10 mg/m3 ",3,0.5]
[null,"½ hourly mean","20 mg/m3 ",12,0.22]
["Hydrogen chloride ","Daily mean","10 mg/m3 ",34,7.6]
[null,"½ hourly mean","60 mg/m3 ",248,7.6]
["Sulphur dioxide","Daily mean","50 mg/m3 ",10,6.1]
[null,"½ hourly mean","200 mg/m3 ",17,5.4]
["Carbon monoxide ","Daily mean","50 mg/m3 ",204,16.399999999999999]
[null,"½ hourly mean *","100 mg/m3 *",329,53.5]
[null,"95%ile 10-min avg *","150 mg/m3 *",141,83.4]
[" Ammonia","Daily mean","No limit set",11,2.2000000000000002]
["* = delete or amend as appropriate"]
["Comments :"]

{"sheet":"HCl","index":15,"n_rows":79,"n_cols":17,"rows_kept":79,"cut":false,"hidden":false,"merged":[[12,16,15,18],[51,9,63,9],[66,9,78,9],[4,9,4,14],[4,1,4,3],[4,4,4,6],[48,0,51,6],[47,0,47,6],[6,9,18,9],[21,9,33,9],[36,9,48,9],[3,16,7,18],[9,16,11,18]]}
[{"$f":"+'Cover Page'!$B$29","v":"Annual Performance Report 2023"},null,null,null,{"$f":"+'Cover Page'!$B$33","v":"Hull Energy Production Facility"}]
[]
["Monitoring of Hydrogen Chloride emissions",null,null,"Whole Installation",null,null,"See  Notes in Cell Q3",null,null,{"$f":"+A3","v":"Monitoring of Hydrogen Chloride emissions"},null,null,null,"Per Combustion Line",null,null,"Notes:"]
[null,null,null,null,null,null,null,null,null,null,null,null,null,null,null,null,"User to add logic to complete Whole installation, Table A5:G18. From the data in Per Combustion Line, Table J6:O79, subject to No. of lines installed"]
["mg/Nm3","1/2 Hourly Reference Periods",null,null,"Daily Reference Periods"]
[{"$f":"+'Cover Page'!C39","v":2023},"1/2 hourly HCl ELV","Monthly 1/2 hourly mean","Highest 1/2 hourly maximum","Daily HCl ELV","Monthly daily mean","Highest daily maximum",null,null,{"$f":"+A6","v":2023},"mg/Nm3","Monthly 1/2 hourly mean","Monthly 1/2 hourly maximum","Monthly daily mean","Monthly daily maximum"]
["Jan",60,8,31,10,7.7,17,null,null,"A1","Jan"]
["Feb",60,8,69,10,8.5,28,null,null,null,"Feb"]
["Mar",60,7,62,10,7.5,22,null,null,null,"Mar",null,null,null,null,null,"Whole Installation table A5:G18:"]
["Apr",60,6,18,10,5.8,7,null,null,null,"Apr",null,null,null,null,null,"Mean: for 1/2 hourly and daily periods calculate mean of values across all operational combustion lines for the month"]
["May",60,"N/A","N/A",10,"N/A","N/A",null,null,null,"May"]
["Jun",60,6,64,10,6.1,9,null,null,null,"Jun"]
["Jul",60,8,248,10,8.5,34,null,null,null,"Jul",null,null,null,null,null,"Maximum: for 1/2 hourly and daily periods use the highest value across all operational combustion lines for the month"]
["Aug",60,9,49,10,9.3000000000000007,12,null,null,null,"Aug"]
["Sep",60,9,160,10,8.75,19,null,null,null,"Sep"]
["Oct",60,8,61,10,7.4,9,null,null,null,"Oct"]
["Nov",60,8.3000000000000007,36,10,8.3000000000000007,29,null,null,null,"Nov"]
["Dec",60,6,10,10,5.6,7,null,null,null,"Dec"]
[null,null,null,null,null,null,null,null,null,null,"Annual",{"$f":"AVERAGE(L7:L18)","v":{"$error":"#DIV/0!"}},{"$f":"MAX(M7:M18)","v":0},{"$f":"AVERAGE(N7:N18)","v":{"$error":"#DIV/0!"}},{"$f":"MAX(O7:O18)","v":0}]
[]
[null,null,null,null,null,null,null,null,null,{"$f":"+A6","v":2023},"mg/Nm3","Monthly 1/2 hourly mean","Monthly 1/2 hourly maximum","Monthly daily mean","Monthly daily maximum"]
[null,null,null,null,null,null,null,null,null,"A2","Jan"]
[null,null,null,null,null,null,null,null,null,null,"Feb"]
[null,null,null,null,null,null,null,null,null,null,"Mar"]
[null,null,null,null,null,null,null,null,null,null,"Apr"]
[null,null,null,null,null,null,null,null,null,null,"May"]
[null,null,null,null,null,null,null,null,null,null,"Jun"]
[null,null,null,null,null,null,null,null,null,null,"Jul"]
[null,null,null,null,null,null,null,null,null,null,"Aug"]
[null,null,null,null,null,null,null,null,null,null,"Sep"]
[null,null,null,null,null,null,null,null,null,null,"Oct"]
[null,null,null,null,null,null,null,null,null,null,"Nov"]
[null,null,null,null,null,null,null,null,null,null,"Dec"]
[null,null,null,null,null,null,null,null,null,null,"Annual",{"$f":"AVERAGE(L22:L33)","v":{"$error":"#DIV/0!"}},{"$f":"MAX(M22:M33)","v":0},{"$f":"AVERAGE(N22:N33)","v":{"$error":"#DIV/0!"}},{"$f":"MAX(O22:O33)","v":0}]
[]
[null,null,null,null,null,null,null,null,null,{"$f":"+A6","v":2023},"mg/Nm3","Monthly 1/2 hourly mean","Monthly 1/2 hourly maximum","Monthly daily mean","Monthly daily maximum"]
[null,null,null,null,null,null,null,null,null,"A3","Jan"]
[null,null,null,null,null,null,null,null,null,null,"Feb"]
[null,null,null,null,null,null,null,null,null,null,"Mar"]
[null,null,null,null,null,null,null,null,null,null,"Apr"]
[null,null,null,null,null,null,null,null,null,null,"May"]
[null,null,null,null,null,null,null,null,null,null,"Jun"]
[null,null,null,null,null,null,null,null,null,null,"Jul"]
[null,null,null,null,null,null,null,null,null,null,"Aug"]
[null,null,null,null,null,null,null,null,null,null,"Sep"]
[null,null,null,null,null,null,null,null,null,null,"Oct"]
[null,null,null,null,null,null,null,null,null,null,"Nov"]
["Comments :",null,null,null,null,null,null,null,null,null,"Dec"]
[null,null,null,null,null,null,null,null,null,null,"Annual",{"$f":"AVERAGE(L37:L48)","v":{"$error":"#DIV/0!"}},{"$f":"MAX(M37:M48)","v":0},{"$f":"AVERAGE(N37:N48)","v":{"$error":"#DIV/0!"}},{"$f":"MAX(O37:O48)","v":0}]
[]
[null,null,null,null,null,null,null,null,null,{"$f":"+A6","v":2023},"mg/Nm3","Monthly 1/2 hourly mean","Monthly 1/2 hourly maximum","Monthly daily mean","Monthly daily maximum"]
[null,null,null,null,null,null,null,null,null,"A4","Jan"]
[null,null,null,null,null,null,null,null,null,null,"Feb"]
[null,null,null,null,null,null,null,null,null,null,"Mar"]
[null,null,null,null,null,null,null,null,null,null,"Apr"]
[null,null,null,null,null,null,null,null,null,null,"May"]
[null,null,null,null,null,null,null,null,null,null,"Jun"]
[null,null,null,null,null,null,null,null,null,null,"Jul"]
[null,null,null,null,null,null,null,null,null,null,"Aug"]
[null,null,null,null,null,null,null,null,null,null,"Sep"]
[null,null,null,null,null,null,null,null,null,null,"Oct"]
[null,null,null,null,null,null,null,null,null,null,"Nov"]
[null,null,null,null,null,null,null,null,null,null,"Dec"]
[null,null,null,null,null,null,null,null,null,null,"Annual",{"$f":"AVERAGE(L52:L63)","v":{"$error":"#DIV/0!"}},{"$f":"MAX(M52:M63)","v":0},{"$f":"AVERAGE(N52:N63)","v":{"$error":"#DIV/0!"}},{"$f":"MAX(O52:O63)","v":0}]
[]
[null,null,null,null,null,null,null,null,null,{"$f":"+A6","v":2023},"mg/Nm3","Monthly 1/2 hourly mean","Monthly 1/2 hourly maximum","Monthly daily mean","Monthly daily maximum"]
[null,null,null,null,null,null,null,null,null,"A5","Jan"]
[null,null,null,null,null,null,null,null,null,null,"Feb"]
[null,null,null,null,null,null,null,null,null,null,"Mar"]
[null,null,null,null,null,null,null,null,null,null,"Apr"]
[null,null,null,null,null,null,null,null,null,null,"May"]
[null,null,null,null,null,null,null,null,null,null,"Jun"]
[null,null,null,null,null,null,null,null,null,null,"Jul"]
[null,null,null,null,null,null,null,null,null,null,"Aug"]
[null,null,null,null,null,null,null,null,null,null,"Sep"]
[null,null,null,null,null,null,null,null,null,null,"Oct"]
[null,null,null,null,null,null,null,null,null,null,"Nov"]
[null,null,null,null,null,null,null,null,null,null,"Dec"]
[null,null,null,null,null,null,null,null,null,null,"Annual",{"$f":"AVERAGE(L67:L78)","v":{"$error":"#DIV/0!"}},{"$f":"MAX(M67:M78)","v":0},{"$f":"AVERAGE(N67:N78)","v":{"$error":"#DIV/0!"}},{"$f":"MAX(O67:O78)","v":0}]

{"sheet":"SO2","index":16,"n_rows":79,"n_cols":17,"rows_kept":79,"cut":false,"hidden":false,"merged":[[3,16,7,18],[9,16,11,18],[12,16,15,18],[66,9,78,9],[4,1,4,3],[4,4,4,6],[4,9,4,14],[6,9,18,9],[21,9,33,9],[36,9,48,9],[47,0,47,6],[48,0,51,6],[51,9,63,9]]}
[{"$f":"+'Cover Page'!$B$29","v":"Annual Performance Report 2023"},null,null,null,{"$f":"+'Cover Page'!$B$33","v":"Hull Energy Production Facility"}]
[]
["Monitoring of Sulphur dioxide emissions",null,null,"Whole Installation",null,null,"See  Notes in Cell Q3",null,null,{"$f":"+A3","v":"Monitoring of Sulphur dioxide emissions"},null,null,null,"Per Combustion Line",null,null,"Notes:"]
[null,null,null,null,null,null,null,null,null,null,null,null,null,null,null,null,"User to add logic to complete Whole installation, Table A5:G18. From the data in Per Combustion Line, Table J6:O79, subject to No. of lines installed"]
["mg/Nm3","1/2 Hourly Reference Periods",null,null,"Daily Reference Periods"]
[{"$f":"+'Cover Page'!C39","v":2023},"1/2 hourly SO2 ELV","Monthly 1/2 hourly mean","Highest 1/2 hourly maximum","Daily SO2 ELV","Monthly daily mean","Highest daily maximum",null,null,{"$f":"+A6","v":2023},"mg/Nm3","Monthly 1/2 hourly mean","Monthly 1/2 hourly maximum","Monthly daily mean","Monthly daily maximum"]
["Jan",200,3,44,50,3.8,8,null,null,"A1","Jan"]
["Feb",200,8,11,50,7.4,9,null,null,null,"Feb"]
["Mar",200,7,10,50,7.1,8,null,null,null,"Mar",null,null,null,null,null,"Whole Installation table A5:G18:"]
["Apr",200,2,9,50,1.8,5,null,null,null,"Apr",null,null,null,null,null,"Mean: for 1/2 hourly and daily periods calculate mean of values across all operational combustion lines for the month"]
["May",200,"N/A","N/A",50,"N/A","N/A",null,null,null,"May"]
["Jun",200,8,17,50,7.7,9,null,null,null,"Jun"]
["Jul",200,1.9,10,50,8.5,8,null,null,null,"Jul",null,null,null,null,null,"Maximum: for 1/2 hourly and daily periods use the highest value across all operational combustion lines for the month"]
["Aug",200,0,0,50,0,0,null,null,null,"Aug"]
["Sep",200,7.2,14,50,7.4,9,null,null,null,"Sep"]
["Oct",200,8,12,50,8.1,10,null,null,null,"Oct"]
["Nov",200,7.2,10,50,7.2,8,null,null,null,"Nov"]
["Dec",200,8,12,50,8,10,null,null,null,"Dec"]
[null,null,null,null,null,null,null,null,null,null,"Annual",{"$f":"AVERAGE(L7:L18)","v":{"$error":"#DIV/0!"}},{"$f":"MAX(M7:M18)","v":0},{"$f":"AVERAGE(N7:N18)","v":{"$error":"#DIV/0!"}},{"$f":"MAX(O7:O18)","v":0}]
[]
[null,null,null,null,null,null,null,null,null,{"$f":"+A6","v":2023},"mg/Nm3","Monthly 1/2 hourly mean","Monthly 1/2 hourly maximum","Monthly daily mean","Monthly daily maximum"]
[null,null,null,null,null,null,null,null,null,"A2","Jan"]
[null,null,null,null,null,null,null,null,null,null,"Feb"]
[null,null,null,null,null,null,null,null,null,null,"Mar"]
[null,null,null,null,null,null,null,null,null,null,"Apr"]
[null,null,null,null,null,null,null,null,null,null,"May"]
[null,null,null,null,null,null,null,null,null,null,"Jun"]
[null,null,null,null,null,null,null,null,null,null,"Jul"]
[null,null,null,null,null,null,null,null,null,null,"Aug"]
[null,null,null,null,null,null,null,null,null,null,"Sep"]
[null,null,null,null,null,null,null,null,null,null,"Oct"]
[null,null,null,null,null,null,null,null,null,null,"Nov"]
[null,null,null,null,null,null,null,null,null,null,"Dec"]
[null,null,null,null,null,null,null,null,null,null,"Annual",{"$f":"AVERAGE(L22:L33)","v":{"$error":"#DIV/0!"}},{"$f":"MAX(M22:M33)","v":0},{"$f":"AVERAGE(N22:N33)","v":{"$error":"#DIV/0!"}},{"$f":"MAX(O22:O33)","v":0}]
[]
[null,null,null,null,null,null,null,null,null,{"$f":"+A6","v":2023},"mg/Nm3","Monthly 1/2 hourly mean","Monthly 1/2 hourly maximum","Monthly daily mean","Monthly daily maximum"]
[null,null,null,null,null,null,null,null,null,"A3","Jan"]
[null,null,null,null,null,null,null,null,null,null,"Feb"]
[null,null,null,null,null,null,null,null,null,null,"Mar"]
[null,null,null,null,null,null,null,null,null,null,"Apr"]
[null,null,null,null,null,null,null,null,null,null,"May"]
[null,null,null,null,null,null,null,null,null,null,"Jun"]
[null,null,null,null,null,null,null,null,null,null,"Jul"]
[null,null,null,null,null,null,null,null,null,null,"Aug"]
[null,null,null,null,null,null,null,null,null,null,"Sep"]
[null,null,null,null,null,null,null,null,null,null,"Oct"]
[null,null,null,null,null,null,null,null,null,null,"Nov"]
["Comments :",null,null,null,null,null,null,null,null,null,"Dec"]
[null,null,null,null,null,null,null,null,null,null,"Annual",{"$f":"AVERAGE(L37:L48)","v":{"$error":"#DIV/0!"}},{"$f":"MAX(M37:M48)","v":0},{"$f":"AVERAGE(N37:N48)","v":{"$error":"#DIV/0!"}},{"$f":"MAX(O37:O48)","v":0}]
[]
[null,null,null,null,null,null,null,null,null,{"$f":"+A6","v":2023},"mg/Nm3","Monthly 1/2 hourly mean","Monthly 1/2 hourly maximum","Monthly daily mean","Monthly daily maximum"]
[null,null,null,null,null,null,null,null,null,"A4","Jan"]
[null,null,null,null,null,null,null,null,null,null,"Feb"]
[null,null,null,null,null,null,null,null,null,null,"Mar"]
[null,null,null,null,null,null,null,null,null,null,"Apr"]
[null,null,null,null,null,null,null,null,null,null,"May"]
[null,null,null,null,null,null,null,null,null,null,"Jun"]
[null,null,null,null,null,null,null,null,null,null,"Jul"]
[null,null,null,null,null,null,null,null,null,null,"Aug"]
[null,null,null,null,null,null,null,null,null,null,"Sep"]
[null,null,null,null,null,null,null,null,null,null,"Oct"]
[null,null,null,null,null,null,null,null,null,null,"Nov"]
[null,null,null,null,null,null,null,null,null,null,"Dec"]
[null,null,null,null,null,null,null,null,null,null,"Annual",{"$f":"AVERAGE(L52:L63)","v":{"$error":"#DIV/0!"}},{"$f":"MAX(M52:M63)","v":0},{"$f":"AVERAGE(N52:N63)","v":{"$error":"#DIV/0!"}},{"$f":"MAX(O52:O63)","v":0}]
[]
[null,null,null,null,null,null,null,null,null,{"$f":"+A6","v":2023},"mg/Nm3","Monthly 1/2 hourly mean","Monthly 1/2 hourly maximum","Monthly daily mean","Monthly daily maximum"]
[null,null,null,null,null,null,null,null,null,"A5","Jan"]
[null,null,null,null,null,null,null,null,null,null,"Feb"]
[null,null,null,null,null,null,null,null,null,null,"Mar"]
[null,null,null,null,null,null,null,null,null,null,"Apr"]
[null,null,null,null,null,null,null,null,null,null,"May"]
[null,null,null,null,null,null,null,null,null,null,"Jun"]
[null,null,null,null,null,null,null,null,null,null,"Jul"]
[null,null,null,null,null,null,null,null,null,null,"Aug"]
[null,null,null,null,null,null,null,null,null,null,"Sep"]
[null,null,null,null,null,null,null,null,null,null,"Oct"]
[null,null,null,null,null,null,null,null,null,null,"Nov"]
[null,null,null,null,null,null,null,null,null,null,"Dec"]
[null,null,null,null,null,null,null,null,null,null,"Annual",{"$f":"AVERAGE(L67:L78)","v":{"$error":"#DIV/0!"}},{"$f":"MAX(M67:M78)","v":0},{"$f":"AVERAGE(N67:N78)","v":{"$error":"#DIV/0!"}},{"$f":"MAX(O67:O78)","v":0}]

{"sheet":"NOx","index":17,"n_rows":79,"n_cols":17,"rows_kept":79,"cut":false,"hidden":false,"merged":[[3,16,7,18],[9,16,11,18],[12,16,15,18],[66,9,78,9],[4,1,4,3],[4,4,4,6],[4,9,4,14],[6,9,18,9],[21,9,33,9],[36,9,48,9],[47,0,47,6],[48,0,51,6],[51,9,63,9]]}
[{"$f":"+'Cover Page'!$B$29","v":"Annual Performance Report 2023"},null,null,null,{"$f":"+'Cover Page'!$B$33","v":"Hull Energy Production Facility"}]
[]
["Monitoring of Oxides of Nitrogen emissions",null,null,"Whole Installation",null,null,"See  Notes in Cell Q3",null,null,{"$f":"+A3","v":"Monitoring of Oxides of Nitrogen emissions"},null,null,null,"Per Combustion Line",null,null,"Notes:"]
[null,null,null,null,null,null,null,null,null,null,null,null,null,null,null,null,"User to add logic to complete Whole installation, Table A5:G18. From the data in Per Combustion Line, Table J6:O79, subject to No. of lines installed"]
["mg/Nm3","1/2 Hourly Reference Periods",null,null,"Daily Reference Periods"]
[{"$f":"+'Cover Page'!C39","v":2023},"1/2 hourly NOx ELV","Monthly 1/2 hourly mean","Highest 1/2 hourly maximum","Daily NOx ELV","Monthly daily mean","Highest daily maximum",null,null,{"$f":"+A6","v":2023},"mg/Nm3","Monthly 1/2 hourly mean","Monthly 1/2 hourly maximum","Monthly daily mean","Monthly daily maximum"]
["Jan",400,100,229,200,100,156,null,null,"A1","Jan"]
["Feb",400,165,300,200,165,217,null,null,null,"Feb"]
["Mar",400,176,364,200,176,238,null,null,null,"Mar",null,null,null,null,null,"Whole Installation table A5:G18:"]
["Apr",400,168,323,200,168,192,null,null,null,"Apr",null,null,null,null,null,"Mean: for 1/2 hourly and daily periods calculate mean of values across all operational combustion lines for the month"]
["May",400,"N/A","N/A",200,"N/A","N/A",null,null,null,"May"]
["Jun",400,177,360,200,177,217,null,null,null,"Jun"]
["Jul",400,178,364,200,177,261,null,null,null,"Jul",null,null,null,null,null,"Maximum: for 1/2 hourly and daily periods use the highest value across all operational combustion lines for the month"]
["Aug",400,151,194,200,151,169,null,null,null,"Aug"]
["Sep",400,162,312,200,163,264,null,null,null,"Sep"]
["Oct",400,268,220,200,168,204,null,null,null,"Oct"]
["Nov",400,157,253,200,157,204,null,null,null,"Nov"]
["Dec",400,138,267,200,138,262,null,null,null,"Dec"]
[null,null,null,null,null,null,null,null,null,null,"Annual",{"$f":"AVERAGE(L7:L18)","v":{"$error":"#DIV/0!"}},{"$f":"MAX(M7:M18)","v":0},{"$f":"AVERAGE(N7:N18)","v":{"$error":"#DIV/0!"}},{"$f":"MAX(O7:O18)","v":0}]
[]
[null,null,null,null,null,null,null,null,null,{"$f":"+A6","v":2023},"mg/Nm3","Monthly 1/2 hourly mean","Monthly 1/2 hourly maximum","Monthly daily mean","Monthly daily maximum"]
[null,null,null,null,null,null,null,null,null,"A2","Jan"]
[null,null,null,null,null,null,null,null,null,null,"Feb"]
[null,null,null,null,null,null,null,null,null,null,"Mar"]
[null,null,null,null,null,null,null,null,null,null,"Apr"]
[null,null,null,null,null,null,null,null,null,null,"May"]
[null,null,null,null,null,null,null,null,null,null,"Jun"]
[null,null,null,null,null,null,null,null,null,null,"Jul"]
[null,null,null,null,null,null,null,null,null,null,"Aug"]
[null,null,null,null,null,null,null,null,null,null,"Sep"]
[null,null,null,null,null,null,null,null,null,null,"Oct"]
[null,null,null,null,null,null,null,null,null,null,"Nov"]
[null,null,null,null,null,null,null,null,null,null,"Dec"]
[null,null,null,null,null,null,null,null,null,null,"Annual",{"$f":"AVERAGE(L22:L33)","v":{"$error":"#DIV/0!"}},{"$f":"MAX(M22:M33)","v":0},{"$f":"AVERAGE(N22:N33)","v":{"$error":"#DIV/0!"}},{"$f":"MAX(O22:O33)","v":0}]
[]
[null,null,null,null,null,null,null,null,null,{"$f":"+A6","v":2023},"mg/Nm3","Monthly 1/2 hourly mean","Monthly 1/2 hourly maximum","Monthly daily mean","Monthly daily maximum"]
[null,null,null,null,null,null,null,null,null,"A3","Jan"]
[null,null,null,null,null,null,null,null,null,null,"Feb"]
[null,null,null,null,null,null,null,null,null,null,"Mar"]
[null,null,null,null,null,null,null,null,null,null,"Apr"]
[null,null,null,null,null,null,null,null,null,null,"May"]
[null,null,null,null,null,null,null,null,null,null,"Jun"]
[null,null,null,null,null,null,null,null,null,null,"Jul"]
[null,null,null,null,null,null,null,null,null,null,"Aug"]
[null,null,null,null,null,null,null,null,null,null,"Sep"]
[null,null,null,null,null,null,null,null,null,null,"Oct"]
[null,null,null,null,null,null,null,null,null,null,"Nov"]
["Comments :",null,null,null,null,null,null,null,null,null,"Dec"]
[null,null,null,null,null,null,null,null,null,null,"Annual",{"$f":"AVERAGE(L37:L48)","v":{"$error":"#DIV/0!"}},{"$f":"MAX(M37:M48)","v":0},{"$f":"AVERAGE(N37:N48)","v":{"$error":"#DIV/0!"}},{"$f":"MAX(O37:O48)","v":0}]
[]
[null,null,null,null,null,null,null,null,null,{"$f":"+A6","v":2023},"mg/Nm3","Monthly 1/2 hourly mean","Monthly 1/2 hourly maximum","Monthly daily mean","Monthly daily maximum"]
[null,null,null,null,null,null,null,null,null,"A4","Jan"]
[null,null,null,null,null,null,null,null,null,null,"Feb"]
[null,null,null,null,null,null,null,null,null,null,"Mar"]
[null,null,null,null,null,null,null,null,null,null,"Apr"]
[null,null,null,null,null,null,null,null,null,null,"May"]
[null,null,null,null,null,null,null,null,null,null,"Jun"]
[null,null,null,null,null,null,null,null,null,null,"Jul"]
[null,null,null,null,null,null,null,null,null,null,"Aug"]
[null,null,null,null,null,null,null,null,null,null,"Sep"]
[null,null,null,null,null,null,null,null,null,null,"Oct"]
[null,null,null,null,null,null,null,null,null,null,"Nov"]
[null,null,null,null,null,null,null,null,null,null,"Dec"]
[null,null,null,null,null,null,null,null,null,null,"Annual",{"$f":"AVERAGE(L52:L63)","v":{"$error":"#DIV/0!"}},{"$f":"MAX(M52:M63)","v":0},{"$f":"AVERAGE(N52:N63)","v":{"$error":"#DIV/0!"}},{"$f":"MAX(O52:O63)","v":0}]
[]
[null,null,null,null,null,null,null,null,null,{"$f":"+A6","v":2023},"mg/Nm3","Monthly 1/2 hourly mean","Monthly 1/2 hourly maximum","Monthly daily mean","Monthly daily maximum"]
[null,null,null,null,null,null,null,null,null,"A5","Jan"]
[null,null,null,null,null,null,null,null,null,null,"Feb"]
[null,null,null,null,null,null,null,null,null,null,"Mar"]
[null,null,null,null,null,null,null,null,null,null,"Apr"]
[null,null,null,null,null,null,null,null,null,null,"May"]
[null,null,null,null,null,null,null,null,null,null,"Jun"]
[null,null,null,null,null,null,null,null,null,null,"Jul"]
[null,null,null,null,null,null,null,null,null,null,"Aug"]
[null,null,null,null,null,null,null,null,null,null,"Sep"]
[null,null,null,null,null,null,null,null,null,null,"Oct"]
[null,null,null,null,null,null,null,null,null,null,"Nov"]
[null,null,null,null,null,null,null,null,null,null,"Dec"]
[null,null,null,null,null,null,null,null,null,null,"Annual",{"$f":"AVERAGE(L67:L78)","v":{"$error":"#DIV/0!"}},{"$f":"MAX(M67:M78)","v":0},{"$f":"AVERAGE(N67:N78)","v":{"$error":"#DIV/0!"}},{"$f":"MAX(O67:O78)","v":0}]

{"sheet":"TOC","index":18,"n_rows":79,"n_cols":17,"rows_kept":79,"cut":false,"hidden":false,"merged":[[3,16,7,18],[9,16,11,18],[12,16,15,18],[66,9,78,9],[4,1,4,3],[4,4,4,6],[4,9,4,14],[6,9,18,9],[21,9,33,9],[36,9,48,9],[47,0,47,6],[48,0,51,6],[51,9,63,9]]}
[{"$f":"+'Cover Page'!$B$29","v":"Annual Performance Report 2023"},null,null,null,{"$f":"+'Cover Page'!$B$33","v":"Hull Energy Production Facility"}]
[]
["Monitoring of Total organic carbon emissions",null,null,"Whole Installation",null,null,"See  Notes in Cell Q3",null,null,{"$f":"+A3","v":"Monitoring of Total organic carbon emissions"},null,null,null,"Per Combustion Line",null,null,"Notes:"]
[null,null,null,null,null,null,null,null,null,null,null,null,null,null,null,null,"User to add logic to complete Whole installation, Table A5:G18. From the data in Per Combustion Line, Table J6:O79, subject to No. of lines installed"]
["mg/Nm3","1/2 Hourly Reference Periods",null,null,"Daily Reference Periods"]
[{"$f":"+'Cover Page'!C39","v":2023},"1/2 hourly TOC ELV","Monthly 1/2 hourly mean","Highest 1/2 hourly maximum","Daily TOC ELV","Monthly daily mean","Highest daily maximum",null,null,{"$f":"+A6","v":2023},"mg/Nm3","Monthly 1/2 hourly mean","Monthly 1/2 hourly maximum","Monthly daily mean","Monthly daily maximum"]
["Jan",20,1,11,10,1,2,null,null,"A1","Jan"]
["Feb",20,0.16,12,10,0.16,1,null,null,null,"Feb"]
["Mar",20,0,6,10,0,0,null,null,null,"Mar",null,null,null,null,null,"Whole Installation table A5:G18:"]
["Apr",20,0,0,10,0,0,null,null,null,"Apr",null,null,null,null,null,"Mean: for 1/2 hourly and daily periods calculate mean of values across all operational combustion lines for the month"]
["May",20,"N/A","N/A",10,"N/A","N/A",null,null,null,"May"]
["Jun",20,0.8,12,10,0.8,3,null,null,null,"Jun"]
["Jul",20,0,4,10,0,0,null,null,null,"Jul",null,null,null,null,null,"Maximum: for 1/2 hourly and daily periods use the highest value across all operational combustion lines for the month"]
["Aug",20,0,0,10,0,0,null,null,null,"Aug"]
["Sep",20,0,4,10,0,0,null,null,null,"Sep"]
["Oct",20,0,3,10,0,0,null,null,null,"Oct"]
["Nov",20,0.3,3,10,0.3,3,null,null,null,"Nov"]
["Dec",20,0.1,3,10,0.1,1,null,null,null,"Dec"]
[null,null,null,null,null,null,null,null,null,null,"Annual",{"$f":"AVERAGE(L7:L18)","v":{"$error":"#DIV/0!"}},{"$f":"MAX(M7:M18)","v":0},{"$f":"AVERAGE(N7:N18)","v":{"$error":"#DIV/0!"}},{"$f":"MAX(O7:O18)","v":0}]
[]
[null,null,null,null,null,null,null,null,null,{"$f":"+A6","v":2023},"mg/Nm3","Monthly 1/2 hourly mean","Monthly 1/2 hourly maximum","Monthly daily mean","Monthly daily maximum"]
[null,null,null,null,null,null,null,null,null,"A2","Jan"]
[null,null,null,null,null,null,null,null,null,null,"Feb"]
[null,null,null,null,null,null,null,null,null,null,"Mar"]
[null,null,null,null,null,null,null,null,null,null,"Apr"]
[null,null,null,null,null,null,null,null,null,null,"May"]
[null,null,null,null,null,null,null,null,null,null,"Jun"]
[null,null,null,null,null,null,null,null,null,null,"Jul"]
[null,null,null,null,null,null,null,null,null,null,"Aug"]
[null,null,null,null,null,null,null,null,null,null,"Sep"]
[null,null,null,null,null,null,null,null,null,null,"Oct"]
[null,null,null,null,null,null,null,null,null,null,"Nov"]
[null,null,null,null,null,null,null,null,null,null,"Dec"]
[null,null,null,null,null,null,null,null,null,null,"Annual",{"$f":"AVERAGE(L22:L33)","v":{"$error":"#DIV/0!"}},{"$f":"MAX(M22:M33)","v":0},{"$f":"AVERAGE(N22:N33)","v":{"$error":"#DIV/0!"}},{"$f":"MAX(O22:O33)","v":0}]
[]
[null,null,null,null,null,null,null,null,null,{"$f":"+A6","v":2023},"mg/Nm3","Monthly 1/2 hourly mean","Monthly 1/2 hourly maximum","Monthly daily mean","Monthly daily maximum"]
[null,null,null,null,null,null,null,null,null,"A3","Jan"]
[null,null,null,null,null,null,null,null,null,null,"Feb"]
[null,null,null,null,null,null,null,null,null,null,"Mar"]
[null,null,null,null,null,null,null,null,null,null,"Apr"]
[null,null,null,null,null,null,null,null,null,null,"May"]
[null,null,null,null,null,null,null,null,null,null,"Jun"]
[null,null,null,null,null,null,null,null,null,null,"Jul"]
[null,null,null,null,null,null,null,null,null,null,"Aug"]
[null,null,null,null,null,null,null,null,null,null,"Sep"]
[null,null,null,null,null,null,null,null,null,null,"Oct"]
[null,null,null,null,null,null,null,null,null,null,"Nov"]
["Comments :",null,null,null,null,null,null,null,null,null,"Dec"]
[null,null,null,null,null,null,null,null,null,null,"Annual",{"$f":"AVERAGE(L37:L48)","v":{"$error":"#DIV/0!"}},{"$f":"MAX(M37:M48)","v":0},{"$f":"AVERAGE(N37:N48)","v":{"$error":"#DIV/0!"}},{"$f":"MAX(O37:O48)","v":0}]
[]
[null,null,null,null,null,null,null,null,null,{"$f":"+A6","v":2023},"mg/Nm3","Monthly 1/2 hourly mean","Monthly 1/2 hourly maximum","Monthly daily mean","Monthly daily maximum"]
[null,null,null,null,null,null,null,null,null,"A4","Jan"]
[null,null,null,null,null,null,null,null,null,null,"Feb"]
[null,null,null,null,null,null,null,null,null,null,"Mar"]
[null,null,null,null,null,null,null,null,null,null,"Apr"]
[null,null,null,null,null,null,null,null,null,null,"May"]
[null,null,null,null,null,null,null,null,null,null,"Jun"]
[null,null,null,null,null,null,null,null,null,null,"Jul"]
[null,null,null,null,null,null,null,null,null,null,"Aug"]
[null,null,null,null,null,null,null,null,null,null,"Sep"]
[null,null,null,null,null,null,null,null,null,null,"Oct"]
[null,null,null,null,null,null,null,null,null,null,"Nov"]
[null,null,null,null,null,null,null,null,null,null,"Dec"]
[null,null,null,null,null,null,null,null,null,null,"Annual",{"$f":"AVERAGE(L52:L63)","v":{"$error":"#DIV/0!"}},{"$f":"MAX(M52:M63)","v":0},{"$f":"AVERAGE(N52:N63)","v":{"$error":"#DIV/0!"}},{"$f":"MAX(O52:O63)","v":0}]
[]
[null,null,null,null,null,null,null,null,null,{"$f":"+A6","v":2023},"mg/Nm3","Monthly 1/2 hourly mean","Monthly 1/2 hourly maximum","Monthly daily mean","Monthly daily maximum"]
[null,null,null,null,null,null,null,null,null,"A5","Jan"]
[null,null,null,null,null,null,null,null,null,null,"Feb"]
[null,null,null,null,null,null,null,null,null,null,"Mar"]
[null,null,null,null,null,null,null,null,null,null,"Apr"]
[null,null,null,null,null,null,null,null,null,null,"May"]
[null,null,null,null,null,null,null,null,null,null,"Jun"]
[null,null,null,null,null,null,null,null,null,null,"Jul"]
[null,null,null,null,null,null,null,null,null,null,"Aug"]
[null,null,null,null,null,null,null,null,null,null,"Sep"]
[null,null,null,null,null,null,null,null,null,null,"Oct"]
[null,null,null,null,null,null,null,null,null,null,"Nov"]
[null,null,null,null,null,null,null,null,null,null,"Dec"]
[null,null,null,null,null,null,null,null,null,null,"Annual",{"$f":"AVERAGE(L67:L78)","v":{"$error":"#DIV/0!"}},{"$f":"MAX(M67:M78)","v":0},{"$f":"AVERAGE(N67:N78)","v":{"$error":"#DIV/0!"}},{"$f":"MAX(O67:O78)","v":0}]

{"sheet":"Particulates","index":19,"n_rows":79,"n_cols":17,"rows_kept":79,"cut":false,"hidden":false,"merged":[[3,16,7,18],[9,16,11,18],[12,16,15,18],[66,9,78,9],[4,1,4,3],[4,4,4,6],[4,9,4,14],[6,9,18,9],[21,9,33,9],[36,9,48,9],[47,0,47,6],[48,0,51,6],[51,9,63,9]]}
[{"$f":"+'Cover Page'!$B$29","v":"Annual Performance Report 2023"},null,null,null,{"$f":"+'Cover Page'!$B$33","v":"Hull Energy Production Facility"}]
[]
["Monitoring of Particulate matter emissions",null,null,"Whole Installation",null,null,"See  Notes in Cell Q3",null,null,{"$f":"+A3","v":"Monitoring of Particulate matter emissions"},null,null,null,"Per Combustion Line",null,null,"Notes:"]
[null,null,null,null,null,null,null,null,null,null,null,null,null,null,null,null,"User to add logic to complete Whole installation, Table A5:G18. From the data in Per Combustion Line, Table J6:O79, subject to No. of lines installed"]
["mg/Nm3","1/2 Hourly Reference Periods",null,null,"Daily Reference Periods"]
[{"$f":"+'Cover Page'!C39","v":2023},"1/2 hourly PM ELV","Monthly 1/2 hourly mean","Highest 1/2 hourly maximum","Daily PM ELV","Monthly daily mean","Highest daily maximum",null,null,{"$f":"+A6","v":2023},"mg/Nm3","Monthly 1/2 hourly mean","Monthly 1/2 hourly maximum","Monthly daily mean","Monthly daily maximum"]
["Jan",30,0,0,10,0,0,null,null,"A1","Jan"]
["Feb",30,0,0,10,0,0,null,null,null,"Feb"]
["Mar",30,1.4,12,10,1.4,3,null,null,null,"Mar",null,null,null,null,null,"Whole Installation table A5:G18:"]
["Apr",30,1,1,10,1,1,null,null,null,"Apr",null,null,null,null,null,"Mean: for 1/2 hourly and daily periods calculate mean of values across all operational combustion lines for the month"]
["May",30,"N/A","N/A",10,"N/A","N/A",null,null,null,"May"]
["Jun",30,1,3,10,1,1,null,null,null,"Jun"]
["Jul",30,1,3,10,1,2,null,null,null,"Jul",null,null,null,null,null,"Maximum: for 1/2 hourly and daily periods use the highest value across all operational combustion lines for the month"]
["Aug",30,1,2,10,1,1,null,null,null,"Aug"]
["Sep",30,1,2,10,1,1,null,null,null,"Sep"]
["Oct",30,1,1,10,1,1,null,null,null,"Oct"]
["Nov",30,1,1,10,1,1,null,null,null,"Nov"]
["Dec",30,1,4,10,1,2,null,null,null,"Dec"]
[null,null,null,null,null,null,null,null,null,null,"Annual",{"$f":"AVERAGE(L7:L18)","v":{"$error":"#DIV/0!"}},{"$f":"MAX(M7:M18)","v":0},{"$f":"AVERAGE(N7:N18)","v":{"$error":"#DIV/0!"}},{"$f":"MAX(O7:O18)","v":0}]
[]
[null,null,null,null,null,null,null,null,null,{"$f":"+A6","v":2023},"mg/Nm3","Monthly 1/2 hourly mean","Monthly 1/2 hourly maximum","Monthly daily mean","Monthly daily maximum"]
[null,null,null,null,null,null,null,null,null,"A2","Jan"]
[null,null,null,null,null,null,null,null,null,null,"Feb"]
[null,null,null,null,null,null,null,null,null,null,"Mar"]
[null,null,null,null,null,null,null,null,null,null,"Apr"]
[null,null,null,null,null,null,null,null,null,null,"May"]
[null,null,null,null,null,null,null,null,null,null,"Jun"]
[null,null,null,null,null,null,null,null,null,null,"Jul"]
[null,null,null,null,null,null,null,null,null,null,"Aug"]
[null,null,null,null,null,null,null,null,null,null,"Sep"]
[null,null,null,null,null,null,null,null,null,null,"Oct"]
[null,null,null,null,null,null,null,null,null,null,"Nov"]
[null,null,null,null,null,null,null,null,null,null,"Dec"]
[null,null,null,null,null,null,null,null,null,null,"Annual",{"$f":"AVERAGE(L22:L33)","v":{"$error":"#DIV/0!"}},{"$f":"MAX(M22:M33)","v":0},{"$f":"AVERAGE(N22:N33)","v":{"$error":"#DIV/0!"}},{"$f":"MAX(O22:O33)","v":0}]
[]
[null,null,null,null,null,null,null,null,null,{"$f":"+A6","v":2023},"mg/Nm3","Monthly 1/2 hourly mean","Monthly 1/2 hourly maximum","Monthly daily mean","Monthly daily maximum"]
[null,null,null,null,null,null,null,null,null,"A3","Jan"]
[null,null,null,null,null,null,null,null,null,null,"Feb"]
[null,null,null,null,null,null,null,null,null,null,"Mar"]
[null,null,null,null,null,null,null,null,null,null,"Apr"]
[null,null,null,null,null,null,null,null,null,null,"May"]
[null,null,null,null,null,null,null,null,null,null,"Jun"]
[null,null,null,null,null,null,null,null,null,null,"Jul"]
[null,null,null,null,null,null,null,null,null,null,"Aug"]
[null,null,null,null,null,null,null,null,null,null,"Sep"]
[null,null,null,null,null,null,null,null,null,null,"Oct"]
[null,null,null,null,null,null,null,null,null,null,"Nov"]
["Comments :",null,null,null,null,null,null,null,null,null,"Dec"]
[null,null,null,null,null,null,null,null,null,null,"Annual",{"$f":"AVERAGE(L37:L48)","v":{"$error":"#DIV/0!"}},{"$f":"MAX(M37:M48)","v":0},{"$f":"AVERAGE(N37:N48)","v":{"$error":"#DIV/0!"}},{"$f":"MAX(O37:O48)","v":0}]
[]
[null,null,null,null,null,null,null,null,null,{"$f":"+A6","v":2023},"mg/Nm3","Monthly 1/2 hourly mean","Monthly 1/2 hourly maximum","Monthly daily mean","Monthly daily maximum"]
[null,null,null,null,null,null,null,null,null,"A4","Jan"]
[null,null,null,null,null,null,null,null,null,null,"Feb"]
[null,null,null,null,null,null,null,null,null,null,"Mar"]
[null,null,null,null,null,null,null,null,null,null,"Apr"]
[null,null,null,null,null,null,null,null,null,null,"May"]
[null,null,null,null,null,null,null,null,null,null,"Jun"]
[null,null,null,null,null,null,null,null,null,null,"Jul"]
[null,null,null,null,null,null,null,null,null,null,"Aug"]
[null,null,null,null,null,null,null,null,null,null,"Sep"]
[null,null,null,null,null,null,null,null,null,null,"Oct"]
[null,null,null,null,null,null,null,null,null,null,"Nov"]
[null,null,null,null,null,null,null,null,null,null,"Dec"]
[null,null,null,null,null,null,null,null,null,null,"Annual",{"$f":"AVERAGE(L52:L63)","v":{"$error":"#DIV/0!"}},{"$f":"MAX(M52:M63)","v":0},{"$f":"AVERAGE(N52:N63)","v":{"$error":"#DIV/0!"}},{"$f":"MAX(O52:O63)","v":0}]
[]
[null,null,null,null,null,null,null,null,null,{"$f":"+A6","v":2023},"mg/Nm3","Monthly 1/2 hourly mean","Monthly 1/2 hourly maximum","Monthly daily mean","Monthly daily maximum"]
[null,null,null,null,null,null,null,null,null,"A5","Jan"]
[null,null,null,null,null,null,null,null,null,null,"Feb"]
[null,null,null,null,null,null,null,null,null,null,"Mar"]
[null,null,null,null,null,null,null,null,null,null,"Apr"]
[null,null,null,null,null,null,null,null,null,null,"May"]
[null,null,null,null,null,null,null,null,null,null,"Jun"]
[null,null,null,null,null,null,null,null,null,null,"Jul"]
[null,null,null,null,null,null,null,null,null,null,"Aug"]
[null,null,null,null,null,null,null,null,null,null,"Sep"]
[null,null,null,null,null,null,null,null,null,null,"Oct"]
[null,null,null,null,null,null,null,null,null,null,"Nov"]
[null,null,null,null,null,null,null,null,null,null,"Dec"]
[null,null,null,null,null,null,null,null,null,null,"Annual",{"$f":"AVERAGE(L67:L78)","v":{"$error":"#DIV/0!"}},{"$f":"MAX(M67:M78)","v":0},{"$f":"AVERAGE(N67:N78)","v":{"$error":"#DIV/0!"}},{"$f":"MAX(O67:O78)","v":0}]

{"sheet":"CO 0.5hourly","index":20,"n_rows":79,"n_cols":17,"rows_kept":79,"cut":false,"hidden":false,"merged":[[3,16,7,18],[9,16,11,18],[12,16,15,18],[66,9,78,9],[4,1,4,3],[4,4,4,6],[4,9,4,14],[6,9,18,9],[21,9,33,9],[36,9,48,9],[47,0,47,6],[48,0,51,6],[51,9,63,9]]}
[{"$f":"+'Cover Page'!$B$29","v":"Annual Performance Report 2023"},null,null,null,{"$f":"+'Cover Page'!$B$33","v":"Hull Energy Production Facility"}]
[]
["Monitoring of Carbon Monoxide (half hourly)",null,null,"Whole Installation",null,null,"See  Notes in Cell Q3",null,null,{"$f":"+A3","v":"Monitoring of Carbon Monoxide (half hourly)"},null,null,null,"Per Combustion Line",null,null,"Notes:"]
[null,null,null,null,null,null,null,null,null,null,null,null,null,null,null,null,"User to add logic to complete Whole installation, Table A5:G18. From the data in Per Combustion Line, Table J6:O79, subject to No. of lines installed"]
["mg/Nm3","1/2 Hourly Reference Periods",null,null,"Daily Reference Periods"]
[{"$f":"+'Cover Page'!C39","v":2023},"1/2 hourly CO ELV","Monthly 1/2 hourly mean","Highest 1/2 hourly maximum","Daily CO ELV","Monthly daily mean","Highest daily maximum",null,null,{"$f":"+A6","v":2023},"mg/Nm3","Monthly 1/2 hourly mean","Monthly 1/2 hourly maximum","Monthly daily mean","Monthly daily maximum"]
["Jan",100,31,329,50,30.7,46,null,null,"A1","Jan"]
["Feb",{"$f":"+B7","v":100},19,270,{"$f":"+E7","v":50},18.600000000000001,63,null,null,null,"Feb"]
["Mar",{"$f":"+B8","v":100},21,157,{"$f":"+E8","v":50},20.8,30,null,null,null,"Mar",null,null,null,null,null,"Whole Installation table A5:G18:"]
["Apr",100,18,286,50,18.600000000000001,53,null,null,null,"Apr",null,null,null,null,null,"Mean: for 1/2 hourly and daily periods calculate mean of values across all operational combustion lines for the month"]
["May",100,"N/A","N/A",50,"N/A","N/A",null,null,null,"May"]
["Jun",100,12,104,50,11.8,27,null,null,null,"Jun"]
["Jul",100,11,131,50,11.1,24,null,null,null,"Jul",null,null,null,null,null,"Maximum: for 1/2 hourly and daily periods use the highest value across all operational combustion lines for the month"]
["Aug",100,5,31,50,5,8,null,null,null,"Aug"]
["Sep",100,8,210,50,7.9,28,null,null,null,"Sep"]
["Oct",100,168,220,50,20.2,204,null,null,null,"Oct"]
["Nov",100,157,253,50,15.69,204,null,null,null,"Nov"]
["Dec",100,138,267,50,19,161,null,null,null,"Dec"]
[null,null,null,null,null,null,null,null,null,null,"Annual",{"$f":"AVERAGE(L7:L18)","v":{"$error":"#DIV/0!"}},{"$f":"MAX(M7:M18)","v":0},{"$f":"AVERAGE(N7:N18)","v":{"$error":"#DIV/0!"}},{"$f":"MAX(O7:O18)","v":0}]
[]
[null,null,null,null,null,null,null,null,null,{"$f":"+A6","v":2023},"mg/Nm3","Monthly 1/2 hourly mean","Monthly 1/2 hourly maximum","Monthly daily mean","Monthly daily maximum"]
[null,null,null,null,null,null,null,null,null,"A2","Jan"]
[null,null,null,null,null,null,null,null,null,null,"Feb"]
[null,null,null,null,null,null,null,null,null,null,"Mar"]
[null,null,null,null,null,null,null,null,null,null,"Apr"]
[null,null,null,null,null,null,null,null,null,null,"May"]
[null,null,null,null,null,null,null,null,null,null,"Jun"]
[null,null,null,null,null,null,null,null,null,null,"Jul"]
[null,null,null,null,null,null,null,null,null,null,"Aug"]
[null,null,null,null,null,null,null,null,null,null,"Sep"]
[null,null,null,null,null,null,null,null,null,null,"Oct"]
[null,null,null,null,null,null,null,null,null,null,"Nov"]
[null,null,null,null,null,null,null,null,null,null,"Dec"]
[null,null,null,null,null,null,null,null,null,null,"Annual",{"$f":"AVERAGE(L22:L33)","v":{"$error":"#DIV/0!"}},{"$f":"MAX(M22:M33)","v":0},{"$f":"AVERAGE(N22:N33)","v":{"$error":"#DIV/0!"}},{"$f":"MAX(O22:O33)","v":0}]
[]
[null,null,null,null,null,null,null,null,null,{"$f":"+A6","v":2023},"mg/Nm3","Monthly 1/2 hourly mean","Monthly 1/2 hourly maximum","Monthly daily mean","Monthly daily maximum"]
[null,null,null,null,null,null,null,null,null,"A3","Jan"]
[null,null,null,null,null,null,null,null,null,null,"Feb"]
[null,null,null,null,null,null,null,null,null,null,"Mar"]
[null,null,null,null,null,null,null,null,null,null,"Apr"]
[null,null,null,null,null,null,null,null,null,null,"May"]
[null,null,null,null,null,null,null,null,null,null,"Jun"]
[null,null,null,null,null,null,null,null,null,null,"Jul"]
[null,null,null,null,null,null,null,null,null,null,"Aug"]
[null,null,null,null,null,null,null,null,null,null,"Sep"]
[null,null,null,null,null,null,null,null,null,null,"Oct"]
[null,null,null,null,null,null,null,null,null,null,"Nov"]
["Comments :",null,null,null,null,null,null,null,null,null,"Dec"]
[null,null,null,null,null,null,null,null,null,null,"Annual",{"$f":"AVERAGE(L37:L48)","v":{"$error":"#DIV/0!"}},{"$f":"MAX(M37:M48)","v":0},{"$f":"AVERAGE(N37:N48)","v":{"$error":"#DIV/0!"}},{"$f":"MAX(O37:O48)","v":0}]
[]
[null,null,null,null,null,null,null,null,null,{"$f":"+A6","v":2023},"mg/Nm3","Monthly 1/2 hourly mean","Monthly 1/2 hourly maximum","Monthly daily mean","Monthly daily maximum"]
[null,null,null,null,null,null,null,null,null,"A4","Jan"]
[null,null,null,null,null,null,null,null,null,null,"Feb"]
[null,null,null,null,null,null,null,null,null,null,"Mar"]
[null,null,null,null,null,null,null,null,null,null,"Apr"]
[null,null,null,null,null,null,null,null,null,null,"May"]
[null,null,null,null,null,null,null,null,null,null,"Jun"]
[null,null,null,null,null,null,null,null,null,null,"Jul"]
[null,null,null,null,null,null,null,null,null,null,"Aug"]
[null,null,null,null,null,null,null,null,null,null,"Sep"]
[null,null,null,null,null,null,null,null,null,null,"Oct"]
[null,null,null,null,null,null,null,null,null,null,"Nov"]
[null,null,null,null,null,null,null,null,null,null,"Dec"]
[null,null,null,null,null,null,null,null,null,null,"Annual",{"$f":"AVERAGE(L52:L63)","v":{"$error":"#DIV/0!"}},{"$f":"MAX(M52:M63)","v":0},{"$f":"AVERAGE(N52:N63)","v":{"$error":"#DIV/0!"}},{"$f":"MAX(O52:O63)","v":0}]
[]
[null,null,null,null,null,null,null,null,null,{"$f":"+A6","v":2023},"mg/Nm3","Monthly 1/2 hourly mean","Monthly 1/2 hourly maximum","Monthly daily mean","Monthly daily maximum"]
[null,null,null,null,null,null,null,null,null,"A5","Jan"]
[null,null,null,null,null,null,null,null,null,null,"Feb"]
[null,null,null,null,null,null,null,null,null,null,"Mar"]
[null,null,null,null,null,null,null,null,null,null,"Apr"]
[null,null,null,null,null,null,null,null,null,null,"May"]
[null,null,null,null,null,null,null,null,null,null,"Jun"]
[null,null,null,null,null,null,null,null,null,null,"Jul"]
[null,null,null,null,null,null,null,null,null,null,"Aug"]
[null,null,null,null,null,null,null,null,null,null,"Sep"]
[null,null,null,null,null,null,null,null,null,null,"Oct"]
[null,null,null,null,null,null,null,null,null,null,"Nov"]
[null,null,null,null,null,null,null,null,null,null,"Dec"]
[null,null,null,null,null,null,null,null,null,null,"Annual",{"$f":"AVERAGE(L67:L78)","v":{"$error":"#DIV/0!"}},{"$f":"MAX(M67:M78)","v":0},{"$f":"AVERAGE(N67:N78)","v":{"$error":"#DIV/0!"}},{"$f":"MAX(O67:O78)","v":0}]

{"sheet":"CO 95% 10 min","index":21,"n_rows":79,"n_cols":19,"rows_kept":79,"cut":false,"hidden":false,"merged":[[3,18,7,20],[9,18,11,20],[12,18,15,20],[66,10,78,10],[4,1,4,4],[4,5,4,7],[4,10,4,16],[6,10,18,10],[21,10,33,10],[36,10,48,10],[47,0,47,7],[48,0,51,7],[51,10,63,10]]}
[{"$f":"+'Cover Page'!$B$29","v":"Annual Performance Report 2023"},null,null,null,{"$f":"+'Cover Page'!$B$33","v":"Hull Energy Production Facility"}]
[]
["Monitoring of Carbon Monoxide (10-minute avg)",null,null,null,"Whole Installation",null,null,"See  Notes in Cell S3",null,{"$f":"+A3","v":"Monitoring of Carbon Monoxide (10-minute avg)"},null,null,null,null,"Per Combustion Line",null,"Notes:",null,"Notes:"]
[null,null,null,null,null,null,null,null,null,null,null,null,null,null,null,null,null,null,"User to add logic to complete Whole installation, Table A5:H18. From the data in Per Combustion Line, Table K6:Q79, subject to No. of lines installed"]
["mg/Nm3","10-minute Reference Periods",null,null,null,"Daily Reference Periods"]
[{"$f":"+'Cover Page'!C39","v":2023},"95%ile 10-min avg CO ELV","95%ile 10-min avg maximum","Monthly CO 10-min avg mean","10-min avg maximum","Daily CO ELV","Monthly daily mean","Highest daily maximum",null,null,{"$f":"+A6","v":2023},"mg/Nm3","95%ile 10-min avg maximum","Monthly CO 10-min avg mean","10-min avg maximum","Monthly daily mean","Monthly daily maximum"]
["Jan",150,"N/A","N/A","N/A",50,"N/A","N/A",null,null,"A1","Jan"]
["Feb",{"$f":"+B7","v":150},"N/A","N/A","N/A",{"$f":"+F7","v":50},"N/A","N/A",null,null,null,"Feb"]
["Mar",{"$f":"+B8","v":150},"N/A","N/A","N/A",{"$f":"+F8","v":50},"N/A","N/A",null,null,null,"Mar",null,null,null,null,null,null,"Whole Installation table A5:H18:"]
["Apr",150,"N/A","N/A","N/A",50,"N/A","N/A",null,null,null,"Apr",null,null,null,null,null,null,"Mean: for 10-min and daily periods use average of all operational combustion lines."]
["May",150,"N/A","N/A","N/A",50,"N/A","N/A",null,null,null,"May"]
["Jun",150,136,null,2288,50,22.6,47,null,null,null,"Jun"]
["Jul",150,99,null,1810,50,16,40,null,null,null,"Jul",null,null,null,null,null,null,"Maximum: for 10-min and daily periods use the highest of all operational combustion lines in any month."]
["Aug",150,14,null,184,50,5.75,10,null,null,null,"Aug"]
["Sep",150,64,null,590,50,8.6,27,null,null,null,"Sep"]
["Oct",150,79,null,1508,50,20,33,null,null,null,"Oct"]
["Nov",150,51,null,3108,50,15.6,47,null,null,null,"Nov"]
["Dec",150,141,null,1323,50,19,42,null,null,null,"Dec"]
[null,null,null,null,null,null,null,null,null,null,null,"Annual",{"$f":"AVERAGE(M7:M18)","v":{"$error":"#DIV/0!"}},null,{"$f":"MAX(O7:O18)","v":0},{"$f":"AVERAGE(P7:P18)","v":{"$error":"#DIV/0!"}},{"$f":"MAX(Q7:Q18)","v":0}]
[]
[null,null,null,null,null,null,null,null,null,null,{"$f":"+A6","v":2023},"mg/Nm3","95%ile 10-min avg maximum","Monthly CO 10-min avg mean","10-min avg maximum","Monthly daily mean","Monthly daily maximum"]
[null,null,null,null,null,null,null,null,null,null,"A2","Jan"]
[null,null,null,null,null,null,null,null,null,null,null,"Feb"]
[null,null,null,null,null,null,null,null,null,null,null,"Mar"]
[null,null,null,null,null,null,null,null,null,null,null,"Apr"]
[null,null,null,null,null,null,null,null,null,null,null,"May"]
[null,null,null,null,null,null,null,null,null,null,null,"Jun"]
[null,null,null,null,null,null,null,null,null,null,null,"Jul"]
[null,null,null,null,null,null,null,null,null,null,null,"Aug"]
[null,null,null,null,null,null,null,null,null,null,null,"Sep"]
[null,null,null,null,null,null,null,null,null,null,null,"Oct"]
[null,null,null,null,null,null,null,null,null,null,null,"Nov"]
[null,null,null,null,null,null,null,null,null,null,null,"Dec"]
[null,null,null,null,null,null,null,null,null,null,null,"Annual",{"$f":"AVERAGE(M22:M33)","v":{"$error":"#DIV/0!"}},null,{"$f":"MAX(O22:O33)","v":0},{"$f":"AVERAGE(P22:P33)","v":{"$error":"#DIV/0!"}},{"$f":"MAX(Q22:Q33)","v":0}]
[]
[null,null,null,null,null,null,null,null,null,null,{"$f":"+A6","v":2023},"mg/Nm3","95%ile 10-min avg maximum","Monthly CO 10-min avg mean","10-min avg maximum","Monthly daily mean","Monthly daily maximum"]
[null,null,null,null,null,null,null,null,null,null,"A3","Jan"]
[null,null,null,null,null,null,null,null,null,null,null,"Feb"]
[null,null,null,null,null,null,null,null,null,null,null,"Mar"]
[null,null,null,null,null,null,null,null,null,null,null,"Apr"]
[null,null,null,null,null,null,null,null,null,null,null,"May"]
[null,null,null,null,null,null,null,null,null,null,null,"Jun"]
[null,null,null,null,null,null,null,null,null,null,null,"Jul"]
[null,null,null,null,null,null,null,null,null,null,null,"Aug"]
[null,null,null,null,null,null,null,null,null,null,null,"Sep"]
[null,null,null,null,null,null,null,null,null,null,null,"Oct"]
[null,null,null,null,null,null,null,null,null,null,null,"Nov"]
["Comments :",null,null,null,null,null,null,null,null,null,null,"Dec"]
["Environment Agency explanatory note: The 10-minute average ELV is based on the “95th percentile”. In this case this means that 95% of the 10 minute averages in the relevant 24-hour period (i.e. 137) must be below 150 mg/Nm3, and 5% (i.e. 7) are allowed to be any value above 150 mg/Nm3. Whilst we expect operators to minimise CO emissions at all times, it is perfectly acceptable for the value of the maximum 10-minute average to be above 150 mg/Nm3, provided the 95th percentile ELV has been met for that period. \nThe permit variation issued on 25th May needed for the CO 10 min average  Therefore, CO 10 min CEMS data available since that time. Monthly CO 10-min average mean data not currently avaliable. ",null,null,null,null,null,null,null,null,null,null,"Annual",{"$f":"AVERAGE(M37:M48)","v":{"$error":"#DIV/0!"}},null,{"$f":"MAX(O37:O48)","v":0},{"$f":"AVERAGE(P37:P48)","v":{"$error":"#DIV/0!"}},{"$f":"MAX(Q37:Q48)","v":0}]
[]
[null,null,null,null,null,null,null,null,null,null,{"$f":"+A6","v":2023},"mg/Nm3","95%ile 10-min avg maximum","Monthly CO 10-min avg mean","10-min avg maximum","Monthly daily mean","Monthly daily maximum"]
[null,null,null,null,null,null,null,null,null,null,"A4","Jan"]
[null,null,null,null,null,null,null,null,null,null,null,"Feb"]
[null,null,null,null,null,null,null,null,null,null,null,"Mar"]
[null,null,null,null,null,null,null,null,null,null,null,"Apr"]
[null,null,null,null,null,null,null,null,null,null,null,"May"]
[null,null,null,null,null,null,null,null,null,null,null,"Jun"]
[null,null,null,null,null,null,null,null,null,null,null,"Jul"]
[null,null,null,null,null,null,null,null,null,null,null,"Aug"]
[null,null,null,null,null,null,null,null,null,null,null,"Sep"]
[null,null,null,null,null,null,null,null,null,null,null,"Oct"]
[null,null,null,null,null,null,null,null,null,null,null,"Nov"]
[null,null,null,null,null,null,null,null,null,null,null,"Dec"]
[null,null,null,null,null,null,null,null,null,null,null,"Annual",{"$f":"AVERAGE(M52:M63)","v":{"$error":"#DIV/0!"}},null,{"$f":"MAX(O52:O63)","v":0},{"$f":"AVERAGE(P52:P63)","v":{"$error":"#DIV/0!"}},{"$f":"MAX(Q52:Q63)","v":0}]
[]
[null,null,null,null,null,null,null,null,null,null,{"$f":"+A6","v":2023},"mg/Nm3","95%ile 10-min avg maximum","Monthly CO 10-min avg mean","10-min avg maximum","Monthly daily mean","Monthly daily maximum"]
[null,null,null,null,null,null,null,null,null,null,"A5","Jan"]
[null,null,null,null,null,null,null,null,null,null,null,"Feb"]
[null,null,null,null,null,null,null,null,null,null,null,"Mar"]
[null,null,null,null,null,null,null,null,null,null,null,"Apr"]
[null,null,null,null,null,null,null,null,null,null,null,"May"]
[null,null,null,null,null,null,null,null,null,null,null,"Jun"]
[null,null,null,null,null,null,null,null,null,null,null,"Jul"]
[null,null,null,null,null,null,null,null,null,null,null,"Aug"]
[null,null,null,null,null,null,null,null,null,null,null,"Sep"]
[null,null,null,null,null,null,null,null,null,null,null,"Oct"]
[null,null,null,null,null,null,null,null,null,null,null,"Nov"]
[null,null,null,null,null,null,null,null,null,null,null,"Dec"]
[null,null,null,null,null,null,null,null,null,null,null,"Annual",{"$f":"AVERAGE(M67:M78)","v":{"$error":"#DIV/0!"}},null,{"$f":"MAX(O67:O78)","v":0},{"$f":"AVERAGE(P67:P78)","v":{"$error":"#DIV/0!"}},{"$f":"MAX(Q67:Q78)","v":0}]

{"sheet":"NH3","index":22,"n_rows":79,"n_cols":17,"rows_kept":79,"cut":false,"hidden":false,"merged":[[3,16,7,18],[9,16,11,18],[12,16,15,18],[66,9,78,9],[4,1,4,3],[4,4,4,6],[4,9,4,14],[6,9,18,9],[21,9,33,9],[36,9,48,9],[47,0,47,6],[48,0,51,6],[51,9,63,9]]}
[{"$f":"+'Cover Page'!$B$29","v":"Annual Performance Report 2023"},null,null,null,{"$f":"+'Cover Page'!$B$33","v":"Hull Energy Production Facility"}]
[]
["Monitoring of Ammnonia emissions ",null,null,"Whole Installation",null,null,"See  Notes in Cell Q3",null,null,{"$f":"+A3","v":"Monitoring of Ammnonia emissions "},null,null,null,"Per Combustion Line",null,null,"Notes:"]
[null,null,null,null,null,null,null,null,null,null,null,null,null,null,null,null,"User to add logic to complete Whole installation, Table A5:G18. From the data in Per Combustion Line, Table J6:O79, subject to No. of lines installed"]
["mg/Nm3","1/2 Hourly Reference Periods",null,null,"Daily Reference Periods"]
[{"$f":"+'Cover Page'!C39","v":2023},"1/2 hourly NH3 ELV","Monthly 1/2 hourly mean","Highest 1/2 hourly maximum","Daily NH3 ELV","Monthly daily mean","Highest daily maximum",null,null,{"$f":"+A6","v":2023},"mg/Nm3","Monthly 1/2 hourly mean","Monthly 1/2 hourly maximum","Monthly daily mean","Monthly daily maximum"]
["Jan",0,1,4,10,1.2,2,null,null,"A1","Jan"]
["Feb",{"$f":"+B7","v":0},2,11,{"$f":"+E7","v":10},2.1,5,null,null,null,"Feb"]
["Mar",{"$f":"+B8","v":0},2,6,{"$f":"+E8","v":10},1.9,3,null,null,null,"Mar",null,null,null,null,null,"Whole Installation table A5:G18:"]
["Apr",0,2,11,10,2.2999999999999998,4,null,null,null,"Apr",null,null,null,null,null,"Mean: for 1/2 hourly and daily periods calculate mean of values across all operational combustion lines for the month"]
["May",0,"N/A","N/A",10,"N/A","N/A",null,null,null,"May"]
["Jun",0,2,12,10,1.8,4,null,null,null,"Jun"]
["Jul",0,3,15,10,3.4,7,null,null,null,"Jul",null,null,null,null,null,"Maximum: for 1/2 hourly and daily periods use the highest value across all operational combustion lines for the month"]
["Aug",0,3,5,10,2.6,4,null,null,null,"Aug"]
["Sep",0,3,27,10,2.9,11,null,null,null,"Sep"]
["Oct",0,2,18,10,2,5,null,null,null,"Oct"]
["Nov",0,1.2,5,10,1.2,2,null,null,null,"Nov"]
["Dec",0,2,10,10,2.1,3,null,null,null,"Dec"]
[null,null,null,null,null,null,null,null,null,null,"Annual",{"$f":"AVERAGE(L7:L18)","v":{"$error":"#DIV/0!"}},{"$f":"MAX(M7:M18)","v":0},{"$f":"AVERAGE(N7:N18)","v":{"$error":"#DIV/0!"}},{"$f":"MAX(O7:O18)","v":0}]
[]
[null,null,null,null,null,null,null,null,null,{"$f":"+A6","v":2023},"mg/Nm3","Monthly 1/2 hourly mean","Monthly 1/2 hourly maximum","Monthly daily mean","Monthly daily maximum"]
[null,null,null,null,null,null,null,null,null,"A2","Jan"]
[null,null,null,null,null,null,null,null,null,null,"Feb"]
[null,null,null,null,null,null,null,null,null,null,"Mar"]
[null,null,null,null,null,null,null,null,null,null,"Apr"]
[null,null,null,null,null,null,null,null,null,null,"May"]
[null,null,null,null,null,null,null,null,null,null,"Jun"]
[null,null,null,null,null,null,null,null,null,null,"Jul"]
[null,null,null,null,null,null,null,null,null,null,"Aug"]
[null,null,null,null,null,null,null,null,null,null,"Sep"]
[null,null,null,null,null,null,null,null,null,null,"Oct"]
[null,null,null,null,null,null,null,null,null,null,"Nov"]
[null,null,null,null,null,null,null,null,null,null,"Dec"]
[null,null,null,null,null,null,null,null,null,null,"Annual",{"$f":"AVERAGE(L22:L33)","v":{"$error":"#DIV/0!"}},{"$f":"MAX(M22:M33)","v":0},{"$f":"AVERAGE(N22:N33)","v":{"$error":"#DIV/0!"}},{"$f":"MAX(O22:O33)","v":0}]
[]
[null,null,null,null,null,null,null,null,null,{"$f":"+A6","v":2023},"mg/Nm3","Monthly 1/2 hourly mean","Monthly 1/2 hourly maximum","Monthly daily mean","Monthly daily maximum"]
[null,null,null,null,null,null,null,null,null,"A3","Jan"]
[null,null,null,null,null,null,null,null,null,null,"Feb"]
[null,null,null,null,null,null,null,null,null,null,"Mar"]
[null,null,null,null,null,null,null,null,null,null,"Apr"]
[null,null,null,null,null,null,null,null,null,null,"May"]
[null,null,null,null,null,null,null,null,null,null,"Jun"]
[null,null,null,null,null,null,null,null,null,null,"Jul"]
[null,null,null,null,null,null,null,null,null,null,"Aug"]
[null,null,null,null,null,null,null,null,null,null,"Sep"]
[null,null,null,null,null,null,null,null,null,null,"Oct"]
[null,null,null,null,null,null,null,null,null,null,"Nov"]
["Comments :",null,null,null,null,null,null,null,null,null,"Dec"]
["An indicated ELV value of zero in the table above means that no ammonia limit is set in the permit.  ",null,null,null,null,null,null,null,null,null,"Annual",{"$f":"AVERAGE(L37:L48)","v":{"$error":"#DIV/0!"}},{"$f":"MAX(M37:M48)","v":0},{"$f":"AVERAGE(N37:N48)","v":{"$error":"#DIV/0!"}},{"$f":"MAX(O37:O48)","v":0}]
[]
[null,null,null,null,null,null,null,null,null,{"$f":"+A6","v":2023},"mg/Nm3","Monthly 1/2 hourly mean","Monthly 1/2 hourly maximum","Monthly daily mean","Monthly daily maximum"]
[null,null,null,null,null,null,null,null,null,"A4","Jan"]
[null,null,null,null,null,null,null,null,null,null,"Feb"]
[null,null,null,null,null,null,null,null,null,null,"Mar"]
[null,null,null,null,null,null,null,null,null,null,"Apr"]
[null,null,null,null,null,null,null,null,null,null,"May"]
[null,null,null,null,null,null,null,null,null,null,"Jun"]
[null,null,null,null,null,null,null,null,null,null,"Jul"]
[null,null,null,null,null,null,null,null,null,null,"Aug"]
[null,null,null,null,null,null,null,null,null,null,"Sep"]
[null,null,null,null,null,null,null,null,null,null,"Oct"]
[null,null,null,null,null,null,null,null,null,null,"Nov"]
[null,null,null,null,null,null,null,null,null,null,"Dec"]
[null,null,null,null,null,null,null,null,null,null,"Annual",{"$f":"AVERAGE(L52:L63)","v":{"$error":"#DIV/0!"}},{"$f":"MAX(M52:M63)","v":0},{"$f":"AVERAGE(N52:N63)","v":{"$error":"#DIV/0!"}},{"$f":"MAX(O52:O63)","v":0}]
[]
[null,null,null,null,null,null,null,null,null,{"$f":"+A6","v":2023},"mg/Nm3","Monthly 1/2 hourly mean","Monthly 1/2 hourly maximum","Monthly daily mean","Monthly daily maximum"]
[null,null,null,null,null,null,null,null,null,"A5","Jan"]
[null,null,null,null,null,null,null,null,null,null,"Feb"]
[null,null,null,null,null,null,null,null,null,null,"Mar"]
[null,null,null,null,null,null,null,null,null,null,"Apr"]
[null,null,null,null,null,null,null,null,null,null,"May"]
[null,null,null,null,null,null,null,null,null,null,"Jun"]
[null,null,null,null,null,null,null,null,null,null,"Jul"]
[null,null,null,null,null,null,null,null,null,null,"Aug"]
[null,null,null,null,null,null,null,null,null,null,"Sep"]
[null,null,null,null,null,null,null,null,null,null,"Oct"]
[null,null,null,null,null,null,null,null,null,null,"Nov"]
[null,null,null,null,null,null,null,null,null,null,"Dec"]
[null,null,null,null,null,null,null,null,null,null,"Annual",{"$f":"AVERAGE(L67:L78)","v":{"$error":"#DIV/0!"}},{"$f":"MAX(M67:M78)","v":0},{"$f":"AVERAGE(N67:N78)","v":{"$error":"#DIV/0!"}},{"$f":"MAX(O67:O78)","v":0}]